{"text_format":"1","workbook":"xlsx","n_sheets":25,"sheets":["Cover Page","Facility Info","Operational Data","SEPA Addendum","Operational Summary","Perf. Form 1","Energy Form 1","Permit Compliance","Permit Compliance cont","Improvements","Public Liasion","CO2 N2O","Residues","Water","Air (periodic)","Air (CEMS)","HCl","SO2","NOx","TOC","Particulates","CO 0.5 hourly","CO 95% 10 min","NH3","Template changes log"],"not_rendered":{"charts":8,"images":3,"macros":1,"external_links":3,"defined_names":26,"comments":0,"pivot_tables":0},"unopened":[],"bounds":{"document_bytes":16777216,"sheet_cells":100000,"rows_first":2000,"rows_last":500,"rows_between":2000,"halvings":0,"cell_chars":16384,"cell_head_chars":4096},"cells_cut":0,"cells_raw":0,"read":"whole","date_system":"1900"}

{"sheet":"Cover Page","index":0,"n_rows":53,"n_cols":11,"rows_kept":53,"cut":false,"hidden":false,"merged":[[13,10,18,12],[34,1,34,8],[0,3,5,6],[7,1,23,8],[28,1,28,8],[30,1,30,8],[32,1,32,8],[48,2,48,3],[48,6,48,8],[52,2,52,3],[36,1,36,8],[40,2,40,8],[42,2,42,4],[44,2,44,4],[46,2,46,3],[46,6,46,8]]}
[null,null,null,"Add company logo"]
[null,null,null,null,null,null,null,null,null,null,"Template version 25.1a (for incinerators) - 27/11/25"]
[null,null,null,null,null,null,null,null,null,null,"[SEPA Version 1 151225]"]
[null,null,null,null,null,null,null,null,null,null,"Note that there is another version of this template available for co-incinerators"]
[]
[]
[]
[null,"Add photo"]
[]
[]
[]
[]
[null,null,null,null,null,null,null,null,null,null,"Notes:"]
[null,null,null,null,null,null,null,null,null,null,"This template may require adjustments by individual operators to meet specific reporting requirements as defined in the site Permit(s)"]
[]
[]
[]
[]
[]
[]
[]
[]
[]
[]
[]
[]
[]
[]
[null,"Annual Performance Report 2025"]
[]
[null,"Permit PPC/A/1003157/CP01/VN01"]
[]
[null,"MVV Environment Baldovie Ltd"]
[]
[null,"Lines 1, 2 and 3 "]
[]
[null,"MVV Environment Baldovie Ltd"]
[]
[null,"Year:",2025]
[]
[null,"Address:","Forties Rd, DD4 0NS, Dundee"]
[]
[null,"Tel: "]
[]
[null,"Email: "]
[]
[null,"Prepared by:",null,null,null,"Position:"]
[]
[null,"Approved by:",null,null,null,"Position:"]
[]
[null,"Version:",1]
[]
[null,"Issue Date:","2026-01-30"]

{"sheet":"Facility Info","index":1,"n_rows":22,"n_cols":11,"rows_kept":22,"cut":false,"hidden":false,"merged":[[4,0,17,8],[21,0,53,8],[4,10,13,13],[21,10,30,13]]}
[{"$f":"+'Cover Page'!$B$29","v":"Annual Performance Report 2025"},null,null,null,{"$f":"+'Cover Page'!$B$33","v":"MVV Environment Baldovie Ltd"}]
[]
["Plant Description and Design",null,null,null,null,null,null,null,null,null,"Notes:"]
[]
["The MVV Environment Baldovie Ltd (MEB) Energy from Waste (EfW) facility is located on the northeasterly outskirts of Dundee, Scotland. The facility features two bubbling fluidised bed boilers, each with a thermal output of 17 MWth, firing 7.5 tph of waste per unit. The boilers operate on refuse-derived fuel, which is prepared on-site through the treatment of household and industrial waste received at the site from the local area, primarily from Dundee and Angus Councils.\n\nThe steam generated by the boilers is supplied to a condensing steam turbine for the generation of up to 10.5 MWe of electrical power. The power is generated at 11 kV and after supplying power to run the plant, the balance is exported directly to the local Distribution Network Operator. The plant was constructed from 1998 to 2000 and has been in operation since March 2000 with various plant improvements and modifications made since operations commenced.\n\nSince the facility was acquired by MVV Umwelt in November 2018, significant investment in replacement and upgraded equipment has been made, resulting in improved reliability and efficiency, together with consistent and sustainable improvement in environmental performance. \n\nMVV have constructed a new Combined Heat and Power (CHP) facility using moving grate technology alongside and to the south of the existing fluidised bed plant. This plant has been fully commissioned and is now regulated under full permit conditions from the 1st of January 2022. A consolidated permit PPC/A/1003157/CP01 was issued on the 3rd of December 2023 in line with the changes to the waste incineration BAT conclusions\n\nThe plant can supply up to 20 tonnes of steam for process use from the steam turbine extraction pass-out. This is in addition to the capability to export 9.9 MWe should the steam pass-out not be used. \n\nThe operation of both plants is regulated under a common PPC Permit PPC/A/1003157 (As varied) with a permit variation granted on the 23rd of December 2020 to continue the operation of the fluidised bed plant alongside the new moving grate plant for a period of up to ten years. A consolidated permit was issued on the 3rd of December 2023 in line with the changes to the waste incineration BAT conclusions.\n\nThe application of Best Available Techniques (BAT) will continuously be reviewed due to the transition to operating both plants and within the current year, MEB will be required to demonstrate that the recent BAT Ref for Incineration of Waste requirements are achievable for both plants.",null,null,null,null,null,null,null,null,null,"Include summary of plant design, design capacity, no. of combustion lines, electrical and heat capacity and any other general information that describes the facility, its location and purpose. Enter year site entered  first year of operation following commissioning."]
[]
[]
[]
[]
[]
[]
[]
[]
[]
[]
[]
[]
[]
[]
["Summary of Operational Processes and Procedures"]
[]
["The Lines 1&2 Fluidised Bed Plant comprises the following units:\n\nTwo bubbling fluidised bed incinerators, for the incineration of non-hazardous waste at temperatures above 850oC, each capable of burning up to 10 tonnes of waste an hour.\n\nWaste reception, inspection, preparation, and storage areas, comprising: a tipping hall, shredder;2 hammer mills; a refuse-derived fuel store; waste conveyor system; and metal recovery systems, comprising metal separation and eddy current separation.\n\nBoiler water treatment system comprising a cooling tower and associated pipework and heat exchangers. \nGas cleaning and conditioning units on each line comprise cyclone separators; carbon and lime injection; an ammonia SNCR system; and a bag filtration plant.\n\nAn odour abatement unit comprising activated carbon adsorption filters.\n\nResidue treatment and storage areas comprise a cyclone ash silo with a capacity of 60m3; a filter ash silo with a capacity of 60m3; and a bed ash handling system.\n\nA turbine and electrical generator supply power to the national grid.\n\nThe line 3 construction project under commissioning was officially handed over on the 19th of January 2022. Full Permit conditions were implemented by SEPA on the 1st of January 2022.\n\nThe Line 3 Moving Grate EFW CHP plant comprises the following units:\n\nThe waste reception building comprises a tipping hall with a waste delivery pit of 1,161 m3 capacity, a single waste storage bunker of 4,413m3 capacity, a feed hopper and a quarantine area, all within an enclosed building fitted with a fast-acting roller shutter door and self-closing louvres;\n\nA single inclined reciprocating moving air-cooled grate incinerator for the incineration of non-hazardous waste at temperatures above 850°C, comprising a four-pass vertical water tube boiler, capable of incinerating up to 153,216 tonnes per annum, (typically 110,000 tonnes per annum based on a design point throughput of 13.7 t/hr at LCV10.5MJ/kg, and operational availability of 8000 hours);\n\nA heat recovery boiler in which heat from the combustion gases is recovered, to generate superheated steam passed to a steam turbine and associated electrical generator, capable of generating up to 8.7MWe for export to the National Grid. Steam is extracted from the turbine and fed into a steam network for export of up to 19.58 MWth to other users;\n\nA demineralised water production plant, capable of producing 23m3/hr and comprising ion exchange demineralisation.\n\nA cooling system, comprising a carbon steel and aluminium finned Air Cooled Condenser (ACC) and associated pipework;\n\nFlue gas cleaning and conditioning systems, comprising: a urea Selective Non-Catalytic Reduction (SNCR) system to control NOx emissions; dry scrubbing by calcium hydroxide (lime) injection for the abatement of acid gases and powdered activated carbon (PAC) injection for the abatement of dioxins/furans, volatile organic compounds (VOCs) and heavy metals; and a bag filtration plant for the removal of particulate matter. The flue gas is discharged to the atmosphere via an induced draft (ID) fan through a 90m stack;\n\nAsh residues treatment and storage, comprising incinerator bottom ash (IBA) collection hoppers, conveying system, a water-filled quenching system and storage in a bunker with a capacity of 356m3; \n\nAir pollution control residue (APCr) collection hoppers, conveyors and a storage silo, with a capacity of 160m3 and associated tanker discharge valve;\n\nProcess Water collection systems, comprising a Clean Water collection pit, for the collection of Process Water from the boiler blow-down drain, regeneration and sampling of demineralised water, and return condensate",null,null,null,null,null,null,null,null,null,"Include summary of key processes and procedures such as (but not limited to); waste reception, control rooms, grate, bed and boiler, energy & heat  generation, cooling systems, residue management, emission controls, health and safety systems, maintenance"]

{"sheet":"Operational Data","index":2,"n_rows":65,"n_cols":10,"rows_kept":65,"cut":false,"hidden":false,"merged":[[4,9,23,9],[25,9,29,9],[53,0,57,0],[34,1,39,1],[3,1,3,2],[10,1,22,1],[26,1,28,1],[7,2,7,3]]}
[{"$f":"+'Cover Page'!$B$29","v":"Annual Performance Report 2025"},null,null,null,{"$f":"+'Cover Page'!$B$33","v":"MVV Environment Baldovie Ltd"}]
[]
["Operational Data"]
["Plant Size:",303216,null,"tonnes pa",null,null,null,null,null,"Notes:"]
["Nominal net thermal input:",74,"MWth",null,null,null,null,null,null,"* Export capacity = nominal generation capacity at the generator terminals minus nominal parasitic load.\n\n** CHP and district heating plants only - put N/A if no heat export.\n\n***  Combusted tonnage = tonnes delivered in period + (tonnes in bunker at start of period – tonnes in bunker at end of period), or equivalent calculation depending on plant type\n\n**** Availability Definition: The availability of a line is to be calculated by the number of hours the line reported Continuously Monitored emission levels to the Regulator through the calendar year divided by the total number of hours in that year. \n\nThe overall plant availability is calculated as the mean of all lines in the plant. For clarity this includes periods of abnormal operation.  \n\nRationale: The primary function of an Energy from Waste facility is the disposal of waste. It follows therefore that the availability of a plant is determined by the period of time a facility spends undertaking this activity.\n\n*****NCV of waste: This should be completed for all plants which have a boiler. Calculate using total thermal power produced by boiler/boiler efficiency, or other suitable calculation. \n"]
["Nominal electrical export capacity*:",20,"MWe"]
["Nominal heat export capacity**:",5,"MWth"]
["No. of combustion lines:",3,"No. of steam turbines:",null,2]
[]
["Waste types received","Unit","Q1","Q2","Q3","Q4","Year Total","%"]
["Household / Local Authority","tonnes",30563.980000000003,29963.960000000003,29034.6,30690.400000000005,{"$f":"SUM(C11:F11)","v":120252.94000000002},{"$f":"IF(G11>0,G11/$G$21,\"-\")","v":0.72250284487927741}]
["Commercial & Industrial ",null,10733.440000000002,7085,8454.34,9903.5,{"$f":"SUM(C12:F12)","v":36176.28},0.21735406400167265]
["Hazardous ",null,null,null,null,null,0,"-"]
["Clinical",null,null,null,null,null,0,"-"]
["Waste wood (biomass) ",null,null,null,null,null,0,"-"]
["Refuse Derived Fuel (incl. SRF) - H'hold/LA",null,null,null,null,null,{"$f":"SUM(C16:F16)","v":0},"-"]
["Refuse Derived Fuel (incl. SRF) - C&I",null,2384.8399999999997,450.58,50.88,1067.8399999999999,3954.1399999999994,2.3757235366145268E-2]
["Paper Pulp",null,1122.78,1310.46,1366.22,1517.06,5316.52,3.1942677034404114E-2]
["Animal Tissue / Food",null,46.22,1.68,16.739999999999998,7.9799999999999995,72.62,4.36314959078199E-4]
["Separately collected fraction",null,159.82,212.82,187.84,106.41999999999999,666.9,4.0068637594223473E-3]
["Total waste received",null,{"$f":"SUM(C11:C20)","v":45011.08},{"$f":"SUM(D11:D20)","v":39024.500000000007},{"$f":"SUM(E11:E20)","v":39110.619999999995},{"$f":"SUM(F11:F20)","v":43293.200000000004},166439.40000000002]
["Rejected Waste ",null,0,0.06,3.74,0,{"$f":"SUM(C22:F22)","v":3.8000000000000003},{"$f":"IF(G22>0,G22/$G$21,\"-\")","v":2.2831132532321071E-5}]
["Unprocessed waste transferred out",null,0,null,null,null,{"$f":"SUM(C23:F23)","v":0},{"$f":"IF(G23>0,G23/$G$21,\"-\")","v":"-"}]
["Total waste combusted ***",null,45040.86,38184.999999999993,39895.72,42893.979999999996,{"$f":"SUM(C24:F24)","v":166015.56}]
[]
["Energy Usage / Export","Unit","Q1","Q2","Q3","Q4","Year Total","KWh/te",null,"Password for protected cells\nA password has been set to prevent accidental  editing of cells with formulae. \nIf you still need to make an edit for some reason then the password = 1234"]
["Power generated at generator terminals","MWh",30957,26993,27677,30285,{"$f":"SUM(C27:F27)","v":115912},{"$f":"IF(G27>0,G27*1000/$G$24,\"-\")","v":698.19961454215502}]
["Power exported to grid and other external user(s)",null,25457,19911,23326,25628,{"$f":"SUM(C28:F28)","v":94322},{"$f":"IF(G28>0,G28*1000/$G$24,\"-\")","v":568.15156362451808}]
["Power imported",null,334,437.4,641.69999999999993,378.4,1791.5,{"$f":"IF(G29>0,G29*1000/$G$24,\"-\")","v":10.791157166231889}]
["Indicative parasitic load","%",{"$f":"IF(C27>0,(C27-C28)/C27,\"-\")","v":0.17766579448913009},{"$f":"IF(D27>0,(D27-D28)/D27,\"-\")","v":0.26236431667469345},0.1572063446182751,0.15377249463430742,{"$f":"IF(G27>0,1-G28/(G27+G29),\"-\")","v":0.19864744888639674}]
["Thermal Energy Exported **","MWh",415.47300000000001,125.678,62.179000000000002,223.95,{"$f":"SUM(C31:F31)","v":827.28},{"$f":"IF(G31>0,G31*1000/$G$24,\"-\")","v":4.9831473628134617}]
["R1 value (if applicable)","R1","-","-","-","-"]
[]
["Waste Disposal & Recovery","Unit","Q1","Q2","Q3","Q4","Year Total","% inputs"]
["APC Residues - produced","tonnes",1464.36,1269.5199999999998,1204.5,1327.16,{"$f":"SUM(C35:F35)","v":5265.54},{"$f":"IF(G35>0,G35/$G$24,\"-\")","v":3.1717147477019626E-2}]
["IBA - produced",null,9172.14,8529.91,8529.5,8822.34,35053.89,{"$f":"IF(G36>0,G36/$G$24,\"-\")","v":0.21114822008250311}]
["Metals recycling",null,258.21999999999997,333.5,163.89999999999998,336.21999999999997,{"$f":"SUM(C37:F37)","v":1091.8399999999999},6.5767329279255507E-3]
["Cyclone ash ",null,784.4,835.14,566.32000000000005,559.22,{"$f":"SUM(C38:F38)","v":2745.08},1.653507659161587E-2]
["Other",null,0,0,0,0,0,"-"]
["Other",null,0,0,0,0,0,"-"]
[]
["Raw Material Usage","Unit","Q1","Q2","Q3","Q4","Year Total","Qty./te"]
["Mains Water","ltrs",32583,30490,28446,33033,{"$f":"SUM(C43:F43)","v":124552},{"$f":"IF(G43>0,G43/$G$24,\"-\")","v":0.75024292903629031}]
["Other Water","m3",26781.5,32684.5,24900,15999,100365,{"$f":"IF(G44>0,G44/$G$24,\"-\")","v":0.60455176611156203}]
["Ammonia","kgs",62400,74100,42500,67400,246400,1.4841982281660828]
["Urea","kgs",14000,9000,13600,24900,{"$f":"SUM(C46:F46)","v":61500},0.37044720386450525]
["Activated Carbon","kgs",29200,41000,61000,52210,183410,1.1047759619640471]
["Lime / hydrated lime","kgs",612000,569000,496000,536000,2213000,13.330075807352033]
["Fuel oil","ltrs",277813,437424,483748,296297,1495282,9.0068786323402463]
["Gas","m3",null,null,null,null,0,"-"]
["Other",null,null,null,null,null,0,"-"]
[]
["Summary ","Line/Unit","Q1","Q2","Q3","Q4","Year Total",null,"Hrs in year "]
["Availability of waste combustion by line, hrs ****",1,1428,1496,1127,1420,{"$f":"SUM(C54:F54)","v":5471},{"$f":"+G54/$I$54","v":0.62454337899543377},8760,"Change this figure to 8784 in a leap year"]
[null,2,999,1503,1143,914,4559,{"$f":"+G55/$I$54","v":0.52043378995433787}]
[null,3,2141,1462,2079,2159,7841,0.8950913242009132]
[null,4,null,null,null,null,0,0]
[null,5,null,null,null,null,{"$f":"SUM(C58:F58)","v":0},0]
["Hours of turbine operations, hrs",1,1236,2044,1623,1595,6498,0.74178082191780825]
["Hours of turbine operations, hrs",2,2160,1420,2049,2203,7832,0.8940639269406393]
["Hours of heat / steam export**","hours",2135,1450,2065,2150,7800,{"$f":"IF(B61>0,G60/I54,\"n/a\")","v":0.8940639269406393}]
["Net calorific value of waste*****","MJ/kg",10.229688966114242,10.504089770934431,10.697362219821466,10.223116618759603,{"$f":"AVERAGE(C62:F62)","v":10.413564393907436}]
["Abnormal operation events","qty.",null,null,null,null,0,{"$f":"IF(G63>0,\"yes\",\"no\")","v":"no"}]
["Abnormal operation duration","hours",null,null,null,null,0,{"$f":"+(G64)/I54","v":0}]
["Permit Breaches","qty.",null,1,1,null,2,{"$f":"IF(G65>0,\"yes\",\"no\")","v":"yes"}]

{"sheet":"SEPA Addendum","index":3,"n_rows":28,"n_cols":7,"rows_kept":28,"cut":false,"hidden":false,"merged":[[22,0,22,1],[24,0,24,1],[26,0,26,9],[27,0,28,9]]}
[{"$f":"+'[1]Cover Page'!$B$29","v":"Annual Performance Report 2024"},null,null,null,{"$f":"+'[2]Cover Page'!$B$33","v":"Name of Facility as per Permit"}]
[]
["Additional Operational Data for SEPA"]
[]
["a) Report required under Condition 5.2.5 - Non-utilisation of Heat Recovery System"]
["Start of period",null,"End of period",null,"Duration","Brief details of cause of period of non-utilisation and how"]
["Date","Time","Date","Time","hours:minutes (XX:XX)","this was resolved "]
[]
[]
[]
[]
[]
[]
[]
[]
[]
[]
[null,null,null,"TOTAL"]
[]
["b) Additional Energy Data for calendar year"]
[]
["The plant met energy recovery efficiency targets as shown in the table below:",null,null,null,null,"NOTE - For plants not required to complete an Annual Heat and Power Plan"]
["Energy Recovery Efficiency Target",null,"Target","2024 Actual","2023 Actual","Operator comments","* - TTWG means SEPA Thermal Treatment of Waste Guidelines 2014"]
["TTWG*  Start Up Target",null,0.2,"%","%"]
[null,null,"(gross CV basis)"]
[]
["Operator’s comments :"]
["No periods of non-utilisation of heat recovery system within 2025"]

{"sheet":"Operational Summary","index":4,"n_rows":137,"n_cols":11,"rows_kept":137,"cut":false,"hidden":false,"merged":[[50,2,50,8],[53,2,53,8],[70,2,70,8],[85,2,85,8],[88,2,88,8],[44,2,44,8],[29,10,42,13],[4,0,26,8],[4,10,13,13],[28,1,28,8],[29,2,29,8],[30,2,30,8],[31,2,31,8]]}
[{"$f":"+'Cover Page'!$B$29","v":"Annual Performance Report 2025"},null,null,null,{"$f":"+'Cover Page'!$B$33","v":"MVV Environment Baldovie Ltd"}]
[]
["Summary of Plant Operations and Maintenance during the reporting year",null,null,null,null,null,null,null,null,null,"Notes:"]
[]
["All 3 lines saw a reduction in operational availability in 2025 compared to 2024. Line 1 reduced by 17%, Line 2 reduced by 25% and Line 3 reduced by 2.7%. \n\nThe overall power generation reduced by 14.6%, and export reduced by 15% in comparison to 2024. Import power increased by 55.3%, and a 1% increase in indicative parisitic load. Thermal energy exports reduced by 8.1%, although export hours increased by 2.3%.\n\nThe total mass of waste treated decreased by 13.1%. A 5% decrease was observed in local authority waste, and commercial and industrial waste reduced by 30.7%.\n\nUnplanned shutdown:\n\nLine 1 & 2: The majority of the unplanned downtime was a result of equipment defects, bed agglomerations and tube leaks\n\nLine 3: The majority of unplanned downtime was due to grate defects. Other incidents included boiler overpressure events and combustion control issues.\n\nPlanned Downtime:\n\nThe Lines 1&2 spring outage commenced on the 19th of March and ended on the 25th. \nThe Lines 1&2 autumn outage commenced on the 1st of October and ended on the 14th. \nThe Line 3 outage commenced on the 11th of June until the 1st of July.",null,null,null,null,null,null,null,null,null,"Include summary of key operational and/or maintenance activity undertaken in the year, such as any major component upgrades and/or replacements "]
[]
[]
[]
[]
[]
[]
[]
[]
[]
[]
[]
[]
[]
[]
[]
[]
[]
[]
[]
[]
[]
[]
[]
[{"$f":"+'Cover Page'!C39","v":2025},"Plant shut-downs"]
["Start date","End date","Reason for shut-down",null,null,null,null,null,null,null,"Provide a very brief reason for plant shut-down e.g. \"Shut-down prior to major outage\"; \"Emergency shut-down due to boiler tube leak\". All emergency shut-downs must be listed (irrespective of whether or not they were required to be reported to SEPA). \n\nThere is no need to include periods of hot-standby here (e.g. to clear feed chute hopper blockages).\n\nFor clinical waste incinerators which require regular shut-downs for boiler cleaning, there is no need to record these here (only those prior to major outages, and emergency shut-downs). "]
["2025-01-01","2025-01-04T15:26:00","Boiler 2: Loss of bed fluidisation - leak found on superheater on cool down."]
["2025-01-01","2025-01-02T01:24:00","Boiler 1: Loss of bed fluidisation"]
["2025-01-05T19:56:00","2025-01-07T21:51:00","Boiler 1: Loss of bed fluidisation"]
["2025-01-11T00:55:00","2025-01-14T01:03:00","Boiler 2: Windbox Tube leak x2, passed third pressure test"]
["2025-01-12T14:03:00","2025-01-13T20:25:00","Boiler 1: Loss of bed fluidisation"]
["2025-01-18T06:19:00","2025-01-20","Boiler 2: Loss of bed fluidisation"]
["2025-01-20T22:52:00","2025-01-22T08:00:00","Boiler 1: Blocked ash drain - bed condition very poor - off for dig out"]
["2025-01-23T19:48:00","2025-01-24T21:00:00","Boiler 1: Blocked ash drain"]
["2025-02-01T05:00:00","2025-02-03T01:10:00","Boiler 2: Loss of bed fluidisation"]
["2025-02-01T12:40:00","2025-02-03T08:15:00","Boiler 1: Loss of bed fluidisation"]
["2025-02-05T13:46:00","2025-02-07T01:15:00","Boiler 1: Loss of fluidisation"]
["2025-02-05T10:49:00","2025-02-07T05:15:00","Boiler 2: Loss of fluidisation"]
["2025-02-12T04:16:00","2025-02-13T19:59:00","Boiler 2: Rapid loss of bed fluidisation"]
["2025-02-12T11:58:00","2025-02-14T17:14:00","Boiler 1: Blocked ash drain - bed not fluidising on inspection"]
["2025-02-16T02:39:00","2025-02-28T23:59:59","Boiler 2: Instantaneous loss of bed Dp - backpass repair/unblocking - turbine lube oil issues/vibration PSU"]
["2025-02-17T21:00:00","2025-02-20T03:00:00","Boiler 1: Loss of fluidisation under the fuel chute - turbine lube oil issues"]
["2025-03-01","2025-03-11T22:00:00","Boiler 2: Awaiting PSU for turbine vibration"]
["2025-03-11T22:04:00","2025-03-19T20:56:00","Boiler 1: Planned outage"]
["2025-03-11T22:00:00","2025-03-19T13:27:00","Boiler 2: Planned outage"]
["2025-03-21T04:47:00","2025-03-22T13:20:00","Boiler 2: Scalping roller NDE bearing replacement"]
["2025-03-25T08:26:00","2025-03-27T04:01:00","Boiler 2: Banked for slide belt replacement - bed agglomorated on return to service"]
["2025-03-29T17:00:00","2025-03-31T19:38:00","Boiler 1: Erratic emissions - large slag fall killed bed fluidisation"]
["2025-04-01T00:00:01","2025-04-02T18:28:00","Boiler 3: Grate blockage - sliding bearings misaligned"]
["2025-04-05T19:00:00","2025-04-08T11:25:00","Boiler 3: Grate blockage - build up under zone 1 bars - stopping full movement of zone 1."]
["2025-04-05T22:01:00","2025-04-07T03:48:00","Boiler 2: Loss of bed fluidisation"]
["2025-04-10T13:00:00","2025-04-11T22:11:00","Boiler 2: Loss of bed fluidisation - wall slag fall"]
["2025-04-11T20:27:00","2025-04-13T20:56:00","Boiler: Blocked ash drain - off waste"]
["2025-04-12T00:50:00","2025-04-16T09:30:00","Boiler 3: Grate blockage - zone 2 LHS loss of ful movement"]
["2025-04-16T09:01:00","2025-04-18T00:36:00","Boiler 2: Bed agglomoration"]
["2025-04-23T05:57:00","2025-04-27T04:08:00","Boiler 2: Loss of fluidisation"]
["2025-04-23T16:48:00","2025-04-25T11:50:00","Boiler 1: Loss of bed temps - bed slumped"]
["2025-04-27T21:22:00","2025-04-29T07:45:00","Boiler 1: Loss of fluidisation"]
["2025-04-27T04:16:00","2025-04-30T00:34:00","Boiler 2: High dust"]
["2025-04-28T19:05:00","2025-04-29T15:19:00","Boiler trip furnace overpressure event"]
["2025-05-06T15:53:00","2025-05-10T21:35:00","Boiler 2: Blocked ash drain"]
["2025-05-14T12:45:00","2025-05-16T07:05:00","Boiler 1: Blocked ash drain"]
["2025-05-17T20:50:00","2025-05-19T14:02:00","Boiler 2: fuel chute blockage, boiler cooled."]
["2025-05-18T23:18:00","2025-05-21T00:12:00","Boiler 1: Apron lammel jammed - boiler hot banked - slag fall killed bed"]
["2025-05-22T00:36:00","2025-05-23T00:48:00","Boiler 1: Slag fall killed bed"]
["2025-05-23T17:17:00","2025-05-26T12:07:00","Boiler 2: Bed agglomoration"]
["2025-05-25T13:36:00","2025-05-29T20:12:00","Boiler 1: Economiser tube leak - restart delayed by lack of sand up to 28/5 - sand dosing defect 29/5"]
["2025-06-05T20:44:00","2025-06-08T04:45:00","Boiler 1: Loss of bed fluidisation"]
["2025-06-07T16:20:00","2025-06-09T14:05:00","Boiler 2: Loss of fluidisation"]
["2025-06-10T13:00:00","2025-06-30T22:27:00","Planned outage"]
["2025-06-10T21:14:00","2025-06-12T21:09:00","Boiler 2: Loss of BA screw 1 DE bearing"]
["2025-06-11T06:02:00","2025-06-13T00:13:00","Boiler 1: Blocked ash drain leading to loss of fluidisation"]
["2025-06-17T06:08:00","2025-06-19T00:01:00","Boiler 2: Loss of bed fluidisation under the fuel chute"]
["2025-06-20T00:14:00","2025-06-21T21:32:00","Boiler 1: Blocked ash drain leading to loss of fluidisation"]
["2025-06-24T06:36:00","2025-06-27T12:33:00","Boiler 2: Loss of bed fluidisation"]
["2025-06-28T16:29:00","2025-06-30T04:46:00","Boiler 1: Blocked ash drain and build up at bottom of fuel chute"]
["2025-07-01","2025-07-02T09:22:00","Boiler 2: Loss of fluidisation"]
["2025-07-01T00:30:00","2025-07-02T15:47:00","Boiler 1: Loss of fluidisation under fuel chute"]
["2025-07-01T03:30:00","2025-07-03T00:04:00","Boiler 3: Loss of combustion control - high CO, SO2 & TOC"]
["2025-07-03T15:53:00","2025-07-05T00:09:00","Boiler 2: Loss of bed fluidisation under fuel chute"]
["2025-07-04T21:36:00","2025-07-09T00:32:00","Boiler 1: Loss of bed fluidisation under fuel chute and superheater tube leak"]
["2025-07-05T14:17:00","2025-07-08T04:57:00","Boiler 2: Furnace positive pressure, burners not starting - loss of top temp and bed not fluidising"]
["2025-07-09T17:38:00","2025-07-12T04:24:00","Boiler 1: Loss of fluidisation under fuel chute"]
["2025-07-09T20:11:00","2025-07-12T16:38:00","Boiler 2: Loss of fluidisation under fuel chute"]
["2025-07-14T10:13:00","2025-07-16T10:26:00","Boiler 2: Loss of fluidisation under fuel chute (BA chain off x5 times over NS 13/7)"]
["2025-07-16T06:56:00","2025-07-18T00:40:00","Boiler 1: Loss of bed fluidisation"]
["2025-07-19T15:46:00","2025-07-21T10:00:00","Boiler 2: Loss of bed fluidisation"]
["2025-07-21T18:19:00","2025-07-24T08:20:00","Boiler 1: Loss of bed fluidisation"]
["2025-07-23T01:51:00","2025-07-25T12:34:00","Boiler 2: Apron off - bed temps at fuel chute dropping off"]
["2025-07-26T00:21:00","2025-07-29T04:32:00","Boiler 1: Loss of bed fluidisation after lots of ash cannons"]
["2025-07-28T21:18:00","2025-07-31T03:23:00","Boiler 2: Loss of bed fluidisation"]
["2025-08-01T14:36:00","2025-08-04T01:49:00","Boiler 1: Loss of bed fluidisation"]
["2025-08-06T04:40:00","2025-08-12T11:00:00","Boiler 1: Bed agglomoration and x3 tube leak"]
["2025-08-09T05:20:00","2025-08-15T02:39:00","Boiler 2: TAF bearing failure"]
["2025-08-17T03:48:00","2025-08-18T23:05:00","Boiler 1: Loss of bed fluidisation"]
["2025-08-17T04:46:00","2025-08-19T02:04:00","Boiler 2: Loss of bed fluidisation"]
["2025-08-20T16:08:00","2025-08-22T04:08:00","Boiler 1: Loss of bed fluidisation"]
["2025-08-20T21:11:00","2025-08-22T13:48:00","Boiler 1: Loss of bed fluidisation following conveyor damage"]
["2025-08-23T04:01:00","2025-08-24T11:04:00","Boiler blocked ash drain"]
["2025-08-25T00:15:00","2025-08-27T02:10:00","Boiler 2: Loss of bed fluidisation - waste building back up fuel chute"]
["2025-08-25T20:29:00","2025-08-27T19:30:00","Boiler 1: Rapid loss of bed fluidisation"]
["2025-08-26T13:14:00","2025-08-29T09:30:00","Loss of grate movement Zone 2 RHS"]
["2025-08-30T16:40:00","2025-08-31T23:59:00","Boiler 2: Tube leak around start up burner header"]
["2025-09-01","2025-09-04T05:48:00","Boiler 2: Tube leak around start up burner header"]
["2025-09-01","2025-09-02T20:24:00","Boiler 1: Loss of bed fluidisation"]
["2025-09-03T20:08:00","2025-09-05T08:12:00","Boiler 1: Blocked ash drain - off waste "]
["2025-09-08T06:31:00","2025-09-09T13:50:00","Boiler 1: Loss of bed fluidisation"]
["2025-09-08T10:46:00","2025-09-10T09:52:00","Boiler 2: Loss of bed fluidisation"]
["2025-09-13","2025-09-13T23:59:59","Boiler 2: Agglomeration"]
["2025-09-15","2025-09-15T23:59:59","Boiler 1: Agglomeration"]
["2025-09-16","2025-09-16T22:12:00","Boiler 2: Agglomeration"]
["2025-09-17","2025-09-18T07:16:00","Boiler 2: Agglomeration"]
["2025-09-19T16:12:00","2025-09-22T21:16:00","Boiler 1: Bed agglomoration"]
["2025-09-21T22:10:00","2025-09-23T14:53:00","Boiler 2: Off waste bed agglomoration"]
["2025-09-26T19:56:00","2025-09-28T12:41:00","Boiler 1: Off waste loss of bed fluidisation"]
["2025-09-28T13:59:00","2025-09-30T14:00:00","Boiler 2: Off waste loss of bed fluidisation"]
["2025-10-01","2025-10-11T00:25:00","Boiler 1: Planned outage"]
["2025-10-01","2025-10-14T23:59:00","Boiler 2: Planned outage"]
["2025-10-11T02:14:00","2025-10-12T08:35:00","Boiler 1: Off waste apron conveyor defect"]
["2025-10-13T12:03:00","2025-10-15T05:49:00","Boiler 1: Off waste loss of fluidisation under fuel chute"]
["2025-10-16T14:24:00","2025-10-18T15:04:00","Boiler 2: Loss of bed fluidisation"]
["2025-10-17T17:25:00","2025-10-19T05:28:00","Boiler 1: Loss of bed fluidisation"]
["2025-10-20T12:42:00","2025-10-23T05:33:00","Boiler 1: Loss of bed fluidisation - flue gas fan damper defect delayed restart"]
["2025-10-24T20:08:00","2025-10-25T21:35:00","Boiler 2: PAC dosing defect"]
["2025-10-25T20:08:00","2025-10-28T20:32:00","Boiler 1: Loss of bed fluidisation"]
["2025-10-25T21:59:00","2025-10-27T10:14:00","Boiler 2: Loss of bed fluidisation"]
["2025-11-01T03:56:00","2025-11-08T05:02:00","Boiler 1: Backpass screw bridged/blocked - eco leak - BA screw water leak"]
["2025-11-01","2025-11-06T12:07:00","Boiler 2: Ash drain blocked - heavy slagging above bullnose"]
["2025-11-09T16:09:00","2025-11-11T05:02:00","Boiler 1: Loss of bed fluidisation after furnace wall slag fall"]
["2025-11-29T00:12:00","2025-11-30T23:59:00","Boiler 2: Banked lack of waste"]
["2025-12-05T20:30:00","2025-12-08T23:00:00","Boiler 2: Banked lack of waste - restart delayed due to blocked recirc hopper"]
["2025-12-12T13:45:00","2025-12-31T23:59:00","Boiler 2: Lack of waste"]
["2025-12-16T20:10:00","2025-12-18T06:40:00","Boiler 1: Off waste - essential maintenance"]

{"sheet":"Perf. Form 1","index":5,"n_rows":54,"n_cols":12,"rows_kept":54,"cut":false,"hidden":false,"merged":[[9,0,9,9],[10,0,10,1],[10,2,10,3],[10,4,10,5],[10,6,10,7],[10,8,10,9],[2,0,2,4],[2,6,2,8],[3,1,3,4],[5,3,5,4],[5,6,5,7],[8,0,8,1],[8,2,8,3],[8,4,8,5],[8,6,8,7],[8,8,8,9],[11,0,11,1],[11,2,11,3],[11,4,11,5],[11,6,11,7],[11,8,11,9],[12,0,12,1],[12,2,12,3],[12,4,12,5],[12,6,12,7],[12,8,12,9],[15,0,15,1],[15,2,15,3],[15,4,15,5],[15,6,15,7],[15,8,15,9],[16,0,16,9],[13,0,13,1],[13,2,13,3],[13,4,13,5],[13,6,13,7],[13,8,13,9],[14,0,14,3],[14,4,14,5],[14,6,14,7],[14,8,14,9],[17,0,17,1],[17,2,17,3],[17,4,17,5],[17,6,17,7],[17,8,17,9],[18,0,18,1],[18,2,18,3],[18,4,18,5],[18,6,18,7],[18,8,18,9],[19,0,19,1],[19,2,19,3],[19,4,19,5],[19,6,19,7],[19,8,19,9],[20,0,20,1],[20,2,20,3],[20,4,20,5],[20,6,20,7],[20,8,20,9],[21,0,21,1],[21,2,21,3],[21,4,21,5],[21,6,21,7],[21,8,21,9],[22,0,22,3],[22,4,22,5],[22,6,22,7],[22,8,22,9],[31,0,31,3],[31,7,31,8],[32,0,32,3],[32,4,32,5],[32,7,32,8],[33,0,33,3],[33,4,33,5],[33,7,33,8],[23,0,23,3],[23,4,23,5],[23,6,23,7],[23,8,23,9],[25,0,25,9],[26,0,28,9],[36,0,36,3],[36,4,36,5],[36,7,36,8],[37,0,37,3],[37,4,37,5],[37,7,37,8],[34,0,34,3],[34,4,34,5],[34,7,34,8],[35,0,35,3],[35,4,35,5],[35,7,35,8],[50,11,53,14],[47,0,47,1],[49,0,49,9],[50,0,51,9],[38,0,38,9],[39,0,40,9],[43,0,43,1],[43,2,43,9],[45,0,45,1],[46,0,46,1]]}
[{"$f":"+'Cover Page'!C39","v":2025}," Annual Reporting Performance Form 1"]
[]
[{"$f":"+'Cover Page'!B31","v":"Permit PPC/A/1003157/CP01/VN01"},null,null,null,null,"Operator: ",{"$f":"+'Cover Page'!B37","v":"MVV Environment Baldovie Ltd"}]
["Facility:",{"$f":"+'Cover Page'!B33:I33","v":"MVV Environment Baldovie Ltd"},null,null,null,"Form:","Performance 1"]
[]
["Reporting  Period from: ",null,null,"2025-01-01",null,"to:","2025-12-31"]
[]
[{"$f":"+A1","v":2025},"Annual Reporting of Waste Disposal and Recovery"]
["Waste Description",null,"Disposal Route(s)",null,"Disposal Tonnes",null,"Recovery Tonnes",null,"% / tonne of waste incinerated"]
["1) Hazardous Wastes"]
["APC Residues",null,"Recovered",null,0,null,5265.54,null,{"$f":"IF((E11+G11)>0,(E11+G11)/'Operational Data'!$G$24, \"-\")","v":3.1717147477019626E-2}]
["IBA",null,"-",null,0,null,0,null,{"$f":"IF((E12+G12)>0,(E12+G12)/'Operational Data'!$G$24, \"-\")","v":"-"}]
[null,null,null,null,null,null,null,null,{"$f":"IF((E13+G13)>0,(E13+G13)/'Operational Data'!$G$24, \"-\")","v":"-"}]
[null,null,null,null,null,null,null,null,{"$f":"IF((E14+G14)>0,(E14+G14)/'Operational Data'!$G$24, \"-\")","v":"-"}]
["Total Hazardous Waste",null,null,null,{"$f":"SUM(E11:F14)","v":0},null,{"$f":"SUM(G11:H14)","v":5265.54},null,{"$f":"IF((E15+G15)>0,(E15+G15)/'Operational Data'!$G$24, \"-\")","v":3.1717147477019626E-2}]
[]
["2) Non-Hazardous Wastes"]
["IBA",null,"Recovered",null,null,null,35053.89,null,{"$f":"IF((E18+G18)>0,(E18+G18)/'Operational Data'!$G$24, \"-\")","v":0.21114822008250311}]
["Metal",null,"Recycled",null,null,null,1091.8399999999999,null,{"$f":"IF((E19+G19)>0,(E19+G19)/'Operational Data'!$G$24, \"-\")","v":6.5767329279255507E-3}]
["Process Water",null,"-",null,null,null,null,null,{"$f":"IF((E20+G20)>0,(E20+G20)/'Operational Data'!$G$24, \"-\")","v":"-"}]
["Cyclone Ash",null,"Landfilled ",null,null,null,2745.08,null,{"$f":"IF((E21+G21)>0,(E21+G21)/'Operational Data'!$G$24, \"-\")","v":1.653507659161587E-2}]
[null,null,null,null,null,null,null,null,{"$f":"IF((E22+G22)>0,(E22+G22)/'Operational Data'!$G$24, \"-\")","v":"-"}]
["Total Non-Hazardous Waste",null,null,null,{"$f":"SUM(E18:F22)","v":0},null,{"$f":"SUM(G18:H22)","v":38890.81},null,{"$f":"IF((E23+G23)>0,(E23+G23)/'Operational Data'!$G$24, \"-\")","v":0.23426002960204453}]
["TOTAL WASTE",null,null,null,{"$f":"+E23+E15","v":0},null,{"$f":"+G23+G15","v":44156.35},null,{"$f":"IF((E24+G24)>0,(E24+G24)/'Operational Data'!$G$24, \"-\")","v":0.26597717707906415}]
[]
["Operator’s comments :"]
["Effluent water is monitored by Scottish Water under trade effluent consent. Each plants is separately consented. There were no breaches of consent conditions for either plant, further details can be found in the Water section."]
[]
[]
[]
[{"$f":"+A1","v":2025},"Annual Reporting of Water and Other Raw Material Usage"]
["Raw Material",null,null,null,"Usage",null,"Unit","Specific Usage",null,"Unit"]
["Mains Water",null,null,null,{"$f":"+'Operational Data'!G43/1000","v":124.55200000000001},null,"m3",{"$f":"IF(E33>0,E33/'Operational Data'!$G$24,\"-\")","v":7.5024292903629042E-4},null,"m3/te"]
["Total Water",null,null,null,{"$f":"+'Operational Data'!G44+'Operational Data'!G43/1000","v":100489.552},null,"m3",{"$f":"IF(E34>0,E34/'Operational Data'!$G$24,\"-\")","v":0.60530200904059839},null,"m3/te"]
["Urea / Ammonia",null,null,null,{"$f":"+'Operational Data'!G45","v":246400},null,"kg",{"$f":"IF(E35>0,E35/'Operational Data'!$G$24,\"-\")","v":1.4841982281660828},null,"kg/te"]
["Activated Carbon",null,null,null,{"$f":"+'Operational Data'!G47","v":183410},null,"kg",{"$f":"IF(E36>0,E36/'Operational Data'!$G$24,\"-\")","v":1.1047759619640471},null,"kg/te"]
["Lime / hydrated lime / Sodium Bicarb.",null,null,null,{"$f":"+'Operational Data'!G48","v":2213000},null,"kg",{"$f":"IF(E37>0,E37/'Operational Data'!$G$24,\"-\")","v":13.330075807352033},null,"kg/te"]
[]
["Operator’s comments :"]
["All raw material usage is in line with design values. Reduced availability on Lines 1 and 2 has led to lower total usage."]
[]
[]
[{"$f":"+A31","v":2025},"Annual Reporting of other performance indicators "]
["Parameter",null,"Results by Line"]
[null,null,"A1","A2","A3","A4","A5",null,"Turbine 1","Turbine 2"]
["Operating hours for the year, hours",null,5471,4559,7841,null,null,null,6498,7832]
["Number of periods of abnormal operation, qty.",null,0,0,0]
["Cumulative hours of abnormal operation for this year, hours",null,0,0,0]
[]
["Operator’s comments :",null,null,null,null,null,null,null,null,null,null,"Notes:"]
["Boilers 1&2 had poor availability up to November. Availability has significantly improved after the autumn outage.",null,null,null,null,null,null,null,null,null,null,"Where there has been any exceedance of the 60 hour AO limit provide the notification date and a summary of the cause and actions in this box."]
[]
[]
["Signed: ",null,null,null,null,null,"Date:"]

{"sheet":"Energy Form 1","index":6,"n_rows":29,"n_cols":11,"rows_kept":29,"cut":false,"hidden":false,"merged":[[2,6,2,8],[4,1,4,4],[6,3,6,4],[6,6,6,7],[8,0,8,2],[8,3,8,4],[8,6,8,8],[9,0,9,2],[9,3,9,4],[9,6,9,8],[10,0,10,2],[10,3,10,4],[10,6,10,8],[11,0,11,2],[11,3,11,4],[11,6,11,8],[12,0,12,2],[12,3,12,4],[12,6,12,8],[13,0,13,2],[13,3,13,4],[13,6,13,8],[14,0,14,2],[14,3,14,4],[14,6,14,8],[18,10,22,12],[15,0,15,2],[15,3,15,4],[15,6,15,8],[17,0,17,8],[18,0,24,8]]}
[{"$f":"+'Cover Page'!C39","v":2025}," Annual Reporting of Energy Usage/Export"]
[]
[{"$f":"+'Cover Page'!B31","v":"Permit PPC/A/1003157/CP01/VN01"},null,null,null,null,"Operator: ",{"$f":"+'Cover Page'!B37","v":"MVV Environment Baldovie Ltd"}]
[]
["Facility:",{"$f":"+'Cover Page'!B33:I33","v":"MVV Environment Baldovie Ltd"},null,null,null,"Form:","Energy 1"]
[]
["Reporting  Period from: ",null,null,{"$f":"+'Perf. Form 1'!D6:E6","v":"2025-01-01"},null,"to:",{"$f":"+'Perf. Form 1'!G6:H6","v":"2025-12-31"}]
[]
["Energy Source",null,null,"Energy Usage",null,"Unit","Specific Usage (KWh/tonne incinerated"]
["Electricity Produced",null,null,{"$f":"+'Operational Data'!G27","v":115912},null,"MWh",{"$f":"+'Operational Data'!H27","v":698.19961454215502}]
["Electricity Imported   ",null,null,{"$f":"+'Operational Data'!G29","v":1791.5},null,"MWh",{"$f":"+'Operational Data'!H29","v":10.791157166231889}]
["Electricity Exported",null,null,{"$f":"+'Operational Data'!G28","v":94322},null,"MWh",{"$f":"+'Operational Data'!H28","v":568.15156362451808}]
["Gas Oil",null,null,1241.08,null,"tonnes"]
["Steam/hot water exported",null,null,{"$f":"+'Operational Data'!G31","v":827.28},null,"MWh",{"$f":"+'Operational Data'!H31","v":4.9831473628134617}]
[]
[]
[]
["Operator’s comments :",null,null,null,null,null,null,null,null,null,"Notes:"]
["MVV Environment Baldovie began heat export to Michelin Scotland Innovation Parc (MSIP) in Nov 2023; this has continued reliably throughout 2025.",null,null,null,null,null,null,null,null,null,"Include details of any new heat export implemented or in development."]
[]
[]
[]
[]
[]
[]
[]
[]
[]
["Signed: ",null,null,null,null,null,"Date:"]

{"sheet":"Permit Compliance","index":7,"n_rows":47,"n_cols":12,"rows_kept":47,"cut":false,"hidden":false,"merged":[[13,0,13,1],[13,2,13,4],[13,5,13,8],[7,0,7,1],[7,2,7,8],[8,0,8,1],[8,2,8,4],[8,5,8,8],[16,5,16,8],[15,2,15,4],[15,5,15,8],[12,2,12,4],[12,5,12,8],[8,11,20,11],[14,0,14,1],[14,2,14,4],[31,0,31,1],[31,2,31,4],[31,5,31,8],[9,0,9,1],[9,2,9,4],[9,5,9,8],[10,0,10,1],[16,0,16,1],[20,0,20,1],[20,2,20,4],[20,5,20,8],[21,0,21,1],[21,2,21,4],[23,0,23,1],[23,2,23,4],[23,5,23,8],[10,2,10,4],[10,5,10,8],[11,0,11,1],[11,2,11,4],[11,5,11,8],[12,0,12,1],[18,0,18,1],[18,2,18,8],[19,0,19,1],[19,2,19,4],[14,5,14,8],[15,0,15,1],[16,2,16,4],[19,5,19,8],[21,5,21,8],[22,0,22,1],[22,2,22,4],[22,5,22,8],[29,0,29,1],[29,2,29,8],[30,0,30,1],[30,2,30,4],[24,0,24,1],[24,2,24,4],[24,5,24,8],[25,0,25,1],[25,2,25,4],[25,5,25,8],[26,0,26,1],[26,2,26,4],[26,5,26,8],[27,0,27,1],[27,2,27,4],[27,5,27,8],[30,5,30,8],[34,0,34,1],[34,2,34,4],[34,5,34,8],[35,0,35,1],[35,2,35,4],[35,5,35,8],[33,2,33,4],[33,5,33,8],[32,0,32,1],[32,2,32,4],[32,5,32,8],[33,0,33,1],[38,0,38,1],[38,2,38,4],[38,5,38,8],[36,0,36,1],[36,2,36,4],[36,5,36,8],[37,0,37,1],[37,2,37,4],[37,5,37,8]]}
[{"$f":"+'Cover Page'!$B$29","v":"Annual Performance Report 2025"},null,null,null,{"$f":"+'[3]Cover Page'!$B$33","v":"MVV Environment Baldovie Ltd"}]
[]
["Summary of Permit Compliance"]
[]
["Compliance with permit limits for continuously monitored pollutants"]
[]
["The plant met its emission limits as shown in the table below:"]
["Substance",null,"A1 Percentage time compliant during operationNote 1",null,null,null,null,null,null,null,null,"Notes:"]
[null,null,"Half-hourly limit",null,null,"Daily limit",null,null,null,null,null,"Note 1: Please report to 2 decimal places, i.e. xx.xx%\n\nNote 2: Please enter information here (rather than just referencing the notifications that were sent to the EA) including where relevant the incineration line reference, pollutant and value of the measured result for any ELV exceedances.   \n\n"]
["Particulates",null,1,null,null,1]
["Oxides of nitrogen",null,0.99339999999999995,null,null,1]
["Sulphur dioxide",null,0.99970000000000003,null,null,1]
["Carbon monoxide",null,"100% 95% of 10-min averages",null,null,1]
["Total organic carbon",null,0.99280000000000002,null,null,1]
["Hydrogen chloride",null,0.99560000000000004,null,null,1]
["Hydrogen fluoride",null,1,null,null,1]
["Ammonia",null,1,null,null,1]
[]
["Substance",null,"A2 Percentage time compliant during operationNote 1"]
[null,null,"Half-hourly limit",null,null,"Daily limit"]
["Particulates",null,0.99970000000000003,null,null,1]
["Oxides of nitrogen",null,0.98950000000000005,null,null,1]
["Sulphur dioxide",null,1,null,null,1]
["Carbon monoxide",null,"100% 95% of 10-min averages",null,null,1]
["Total organic carbon",null,0.99950000000000006,null,null,1]
["Hydrogen chloride",null,0.99870000000000003,null,null,1]
["Hydrogen fluoride",null,1,null,null,1]
["Ammonia",null,1,null,null,1]
[]
["Substance",null,"A3 Percentage time compliant during operationNote 1"]
[null,null,"Half-hourly limit",null,null,"Daily limit"]
["Particulates",null,1,null,null,1]
["Oxides of nitrogen",null,0.99960000000000004,null,null,1]
["Sulphur dioxide",null,0.99960000000000004,null,null,1]
["Carbon monoxide",null,"99.72% 95% of 10-min averages",null,null,0.98629999999999995]
["Total organic carbon",null,0.99929999999999997,null,null,1]
["Hydrogen chloride",null,0.99890000000000001,null,null,1]
["Hydrogen fluoride",null,1,null,null,1]
["Ammonia",null,1,null,null,1]
[]
[]
[]
[]
[]
[]
[]
[null,null,null,null,null,null," "]

{"sheet":"Permit Compliance cont","index":8,"n_rows":20,"n_cols":12,"rows_kept":20,"cut":false,"hidden":false,"merged":[[16,0,16,8],[22,1,22,3],[22,4,22,6],[19,1,19,3],[19,4,19,6],[20,1,20,3],[20,4,20,6],[21,1,21,3],[21,4,21,6],[19,7,19,8],[20,7,20,8],[21,7,21,8],[22,7,22,8],[17,1,17,3],[17,4,17,6],[18,1,18,3],[18,4,18,6],[8,11,20,11],[11,1,11,2],[11,3,11,5],[11,6,11,8],[12,6,12,8],[13,6,13,8],[12,1,12,2],[13,1,13,2],[12,3,12,5],[13,3,13,5],[17,7,17,8],[18,7,18,8],[7,1,7,2],[7,3,7,5],[9,3,9,5],[6,0,6,10],[10,1,10,2],[7,6,7,8],[8,6,8,8],[9,6,9,8],[9,1,9,2],[10,6,10,8],[10,3,10,5]]}
[{"$f":"+'Cover Page'!$B$29","v":"Annual Performance Report 2025"},null,null,null,{"$f":"+'Cover Page'!$B$33","v":"MVV Environment Baldovie Ltd"}]
[]
["Summary of Permit Compliance"]
[]
["Compliance with permit limits for continuously monitored pollutants"]
[]
["Summary of non-compliances under the permit Note 2"]
["Date","Summary of non-compliance Note 3",null,"Reason ",null,null,"Measures taken to prevent reoccurrence",null,null,null,null,"Notes:"]
[null,null,null,null,null,null,null,null,null,null,null,"Note 1: Please report to 2 decimal places, i.e. xx.xx%\n\nNote 2: Please enter into this table any permit non-compliances  which you have notified to tSEPA (e.g. ELV exceedances). There is no need to enter any notifications which were subsequently assessed by SEPA not to be permit breaches.  \n\nNote 3: Please enter information here (rather than just referencing the notifications that were sent to SEPA) including where relevant the incineration line reference, pollutant and value of the measured result for any ELV exceedances.   \n\n"]
["16/16/2025","Annual outage bunker extraction odour assessment exceedance",null,"High feedstock volume, increasing bunker odour levels, and reduced efficiency of odour abatement contributed to the increased odour within the stack. No complaints were received during this period.",null,null,"Odour abatement to be replaced"]
["2025-07-01","95th%ile CO 10-minute average on Boiler 3.",null,"Start-up ",null,null,"Review of start-up procedures "]
[]
[]
[]
[]
[]
["Summary of any complaints received and actions to taken to resolve them."]
["Date","Summary of complaint [including Line/Reference]",null,null,"Reason (including whether substantiated by the operator or the EA)",null,null,"Measures taken to prevent reoccurrence"]
["2025-07-05","Odour Complaint reported to SEPA, received from the north-north-west. ",null,null,"Not substantiated",null,null,"Investigations found no issues to resolve"]
["2025-12-08","Odour Complaint received by MEB from the west-northwest.",null,null,"Not substantiated",null,null,"Investigations found no issues to resolve"]

{"sheet":"Improvements","index":9,"n_rows":39,"n_cols":5,"rows_kept":39,"cut":false,"hidden":false,"merged":[[37,0,37,8],[38,0,47,8],[4,0,4,8],[5,0,13,8],[15,0,15,8],[16,0,24,8],[26,0,26,8],[27,0,35,8]]}
[{"$f":"+'Cover Page'!$B$29","v":"Annual Performance Report 2025"},null,null,null,{"$f":"+'Cover Page'!$B$33","v":"MVV Environment Baldovie Ltd"}]
[]
["Summary of Plant Improvements"]
[]
["Summary of any efficiency improvements that have been completed within the year."]
["DCS changes were implemented to significantly improve the system's ability to withstand overpressure events, thereby reducing unplanned downtime, minimising emission spikes, and lowering gas oil consumption.\n\nThe Line 3 effluent system has been enhanced to reduce discharge through the diversion of collected water within the FGT to the dirty process water system, enabling reuse."]
[]
[]
[]
[]
[]
[]
[]
[]
[]
["Summary of any permit improvement conditions that have been completed within the year and the resulting environmental benefits."]
["N/A"]
[]
[]
[]
[]
[]
[]
[]
[]
[]
["Summary of any changes to the plant or operating techniques which required a variation to the permit and a summary of the resulting environmental impact."]
["N/A"]
[]
[]
[]
[]
[]
[]
[]
[]
[]
["Summary of any other improvements made to the plant or planned to be made and a summary of the resulting environmental benefits."]
["Energy exports from all 3 lines are under investigation, such as private wire electrical supplier, waste heat recovery and feasibility studies into district heating schemes\n\nEasydos PAC controller was upgraded to increase PAC dosing reliability and accuracy."]

{"sheet":"Public Liasion","index":10,"n_rows":116,"n_cols":5,"rows_kept":116,"cut":false,"hidden":false,"merged":[[86,0,86,1],[86,2,86,8],[83,0,83,1],[83,2,83,8],[84,0,84,1],[84,2,84,8],[85,0,85,1],[85,2,85,8],[80,0,80,1],[80,2,80,8],[81,0,81,1],[81,2,81,8],[82,0,82,1],[82,2,82,8],[77,0,77,1],[77,2,77,8],[78,0,78,1],[78,2,78,8],[79,0,79,1],[79,2,79,8],[74,0,74,1],[74,2,74,8],[75,0,75,1],[75,2,75,8],[76,0,76,1],[76,2,76,8],[71,0,71,1],[71,2,71,8],[72,0,72,1],[72,2,72,8],[73,0,73,1],[73,2,73,8],[68,0,68,1],[68,2,68,8],[69,0,69,1],[69,2,69,8],[70,0,70,1],[70,2,70,8],[65,0,65,1],[65,2,65,8],[66,0,66,1],[66,2,66,8],[67,0,67,1],[67,2,67,8],[62,0,62,1],[62,2,62,8],[63,0,63,1],[63,2,63,8],[64,0,64,1],[64,2,64,8],[55,0,55,1],[55,2,55,8],[56,0,56,1],[56,2,56,8],[57,0,57,1],[57,2,57,8],[52,0,52,1],[52,2,52,8],[53,0,53,1],[53,2,53,8],[54,0,54,1],[54,2,54,8],[49,0,49,1],[49,2,49,8],[50,0,50,1],[50,2,50,8],[51,0,51,1],[51,2,51,8],[37,0,37,1],[37,2,37,8],[38,0,38,1],[38,2,38,8],[39,0,39,1],[39,2,39,8],[34,0,34,1],[34,2,34,8],[35,0,35,1],[35,2,35,8],[36,0,36,1],[36,2,36,8],[15,0,15,1],[15,2,15,8],[16,0,16,1],[16,2,16,8],[17,0,17,1],[17,2,17,8],[21,0,21,1],[21,2,21,8],[22,0,22,1],[22,2,22,8],[23,0,23,1],[23,2,23,8],[24,0,24,1],[24,2,24,8],[25,0,25,1],[12,0,12,1],[12,2,12,8],[13,0,13,1],[13,2,13,8],[14,0,14,1],[14,2,14,8],[9,0,9,1],[9,2,9,8],[10,0,10,1],[10,2,10,8],[11,0,11,1],[11,2,11,8],[6,0,6,1],[6,2,6,8],[7,0,7,1],[7,2,7,8],[8,0,8,1],[8,2,8,8],[115,0,115,8],[98,0,99,1],[98,2,99,8],[100,0,101,1],[100,2,101,8],[102,0,103,1],[102,2,103,8],[104,0,105,1],[104,2,105,8],[106,0,107,1],[106,2,107,8],[108,0,109,1],[108,2,109,8],[110,0,111,1],[110,2,111,8],[112,0,113,1],[30,0,30,1],[30,2,30,8],[31,0,31,1],[31,2,31,8],[32,0,32,1],[32,2,32,8],[33,0,33,1],[33,2,33,8],[25,2,25,8],[26,0,26,1],[26,2,26,8],[27,0,27,1],[27,2,27,8],[28,0,28,1],[28,2,28,8],[29,0,29,1],[29,2,29,8],[18,0,18,1],[18,2,18,8],[19,0,19,1],[19,2,19,8],[20,0,20,1],[20,2,20,8],[44,0,44,1],[44,2,44,8],[45,0,45,1],[45,2,45,8],[46,0,46,1],[46,2,46,8],[47,0,47,1],[47,2,47,8],[48,0,48,1],[48,2,48,8],[40,0,40,1],[40,2,40,8],[41,0,41,1],[41,2,41,8],[42,0,42,1],[42,2,42,8],[43,0,43,1],[43,2,43,8],[58,0,58,1],[58,2,58,8],[59,0,59,1],[59,2,59,8],[60,0,60,1],[60,2,60,8],[61,0,61,1],[61,2,61,8],[112,2,113,8],[97,0,97,1],[97,2,97,8],[5,0,5,1],[5,2,5,8],[96,0,96,8]]}
[{"$f":"+'Cover Page'!$B$29","v":"Annual Performance Report 2025"},null,null,null,{"$f":"+'Cover Page'!$B$33","v":"MVV Environment Baldovie Ltd"}]
[]
["Details of Public & Stakeholder Liaison"]
[]
["Summary of events held during the reporting year."]
["Date",null,"Description"]
["January",null,"Step Up to Enterprise Event - Brechin"]
["January",null,"Dundee & Angus Gardyne College Campus Apprenticeship Job Fair"]
["January",null,"MVV Environment Tour - DYW Team"]
["January",null,"Carnoustie High School Mock Interviews S4"]
["January",null,"MVV Site Visit Dundee College Engineering Students (13)"]
["January",null,"Abroath Locality ASN (5)"]
["January",null,"Primary STEM Career Event (session 4 Term 3) – St Thomas Primary School"]
["January",null,"Liff Primary School MVV Visit (5)"]
["January",null,"St Paul's RC Academy ASN Visit MVV (11)"]
["January",null,"Southmuir Primary School MVV Tour (25)"]
["January",null,"Bullumbie P2 Visit MVV (28)"]
["February",null,"Alator contractors x 2 – Defibrillator Training - 2 hours."]
["February",null,"Brechin High School – Careers Event"]
["February",null,"Developing the Young Workforce, Visit and Tour"]
["February",null,"Step Up to Enterprise – Websters High School"]
["February",null,"Carnoustie High School – Mock Interviews"]
["February",null,"MVV Site Visit Dundee College (13) - Engineering"]
["February",null,"MVV Visit - Liff Primary School Visit (24)"]
["February",null,"MVV Visit - St Paul’s ASN Visit (5)"]
["February",null,"MVV Visit - Claypotts Castle Primary School (26)"]
["February",null,"MVV Visit - Braeview Academy - ESA class (8)"]
["February",null,"MVV Visit - Southmuir Primary School (25)"]
["February",null,"MVV Visit - Bullumbie P2 Visit MVV (28)"]
["March",null,"Local contractor – CEF working with Maintenance Manager for prospective tendering – 2 hours mentoring."]
["March",null,"Meet the Buyer Tayside – MSIP Hub"]
["March",null,"Primary STEM Career Event (Session 6 Term 3) - Wardykes"]
["March",null,"STEM Ambassador Renewables talk - Wardykes Primary P4 – Andy Swaine"]
["March",null,"Dundee & Angus Gardyne College Campus Apprenticeship Job Fair"]
["March",null,"MVV Tour - Carlogie Primary School (11)"]
["March",null,"Craigowl Primary School, P5 (31)"]
["March",null,"MVV Tour Eastern Primary P4a (24)"]
["March",null,"MVV Tour Eastern Primary P4b (24)"]
["March",null,"Abertay - Climate Café - Speaker"]
["April",null,"St Paul’s RC Academy (Careers Focus) (15)"]
["April",null,"MVV visit Brechin High School - S3 (11)"]
["April",null,"St Peter and Paul RC Primary School visit MVV (25)"]
["April",null,"Retired Masons Community Group Visit to MEB (15)"]
["April",null,"Monikie Primary School MVV Visit (34)"]
["May",null,"STEM Day - St Peter and Paul RC Primary - P4/5, P5, P6a and P6b."]
["May",null,"Fintry Primary School Presents Fintry Futures"]
["May",null,"MVV Visit - St Josephs and Victoria Park (10)"]
["May",null,"MVV Visit Changemakers Whitfield Community Group"]
["May",null,"St Paul’s RC Academy MVV Visit (10)"]
["May",null,"Whitehills Primary School MVV Visit Primary 6a (20)"]
["May",null,"Whitehills Primary School MVV Visit Primary 6 (20)"]
["May",null,"Rainbows Evening Visit (15)"]
["June",null,"Curriculum Support and Awareness Raising Activity"]
["June",null,"Primary STEM Career Event - St Thomas Primary School"]
["June",null,"Step Up with Enterprise- Baldragon Academy"]
["June",null,"UoD students visit MVV Environment (10)"]
["July",null,"Angus Primary STEM Career Event – Inverkeilor Primary School"]
["July",null,"Step Up with Enterprise- Baldragon Academy"]
["July",null,"University of Dundee students visit MVV Environment (10)"]
["July",null,"Open Day 2025 (170 people)"]
["September",null,"Behavioural Safety Event, Brad Francis – mentoring 6 hours – Intech."]
["September",null,"Step Up to Enterprise – Monifieth High School"]
["September",null,"Baldragon Academy Careers Fair"]
["September",null,"Andover Primary Class - Waste Presentation - Outreach"]
["September",null,"Ardler Primary School Visit P6/7 (27)"]
["September",null,"Ballumbie Primary school Visit P4 (26)"]
["September",null,"St Pius Primary Visit P5 (24)"]
["September",null,"St Ninian's Primary Visit P4 (33)"]
["September",null,"SRUC Visit (12) – Uni Visit"]
["October",null,"Work Experience, Harris, 4th Year."]
["October",null,"Timmergreens Primary School P5 Presentation (Outreach)"]
["October",null,"Andover Primary P4 Presentation (Outreach)"]
["October",null,"Carlogie Primary School 2 x P5 Presentation (Outreach)"]
["October",null,"Greenfields - DYW and Step Up Enterprise Event"]
["October",null,"Northmuir Primary School Presentation (Outreach)"]
["October",null,"STEM Careers Fair - Gardyne Campus"]
["October",null,"St Pius 2 x P5 Presentation (Outreach)"]
["November",null,"MVV Presentation P1, P1/2, P2, P2/3, P3/4 - Camperdown Primary School"]
["November",null,"MVV Presentation P4/5, P5/6, P6/7, P7 - Camperdown Primary School"]
["November",null,"MVV Presentation - Blackness Primary School – Upper School"]
["November",null,"MVV Presentation S2s - Greenfield Academy"]
["November",null,"MVV Visit - Carlogie Primary - P7 (24)"]
["November",null,"MVV Visit - Climate Cafe"]
["November",null,"MVV Visit - Northmuir Primary School - P7 (29)"]
["December",null,"AIMs Mentor with Carnoustie High School, 2nd year student, 1 hour a week."]
["December",null,"St Pius X Primary Visit P3 (26)"]
["December",null,"Craigowl View Primary Visit (10)"]
[]
[]
[]
[]
[]
[]
[]
[]
[]
["List of events planned for next year"]
["Date",null,"Description"]
["January",null,"Angus Council Convenor Visit "]
[]
["January",null,"DYW Business Breakfast"]
[]
["February",null,"St Pius Primary 5s Visit (17)"]
[]
["February",null,"STEM Outreach Workshop"]
[]
["March",null,"Meet the Buyer - MSIP"]
[]
["March",null,"Abertay University Visit (30)"]
[]
["March",null,"LEGO® League 2026 - Unearthed - Judge"]
[]
["July",null,"Baldovie Open Day 2026"]
[]
[]
["If you wish to be involved in the public liaison programme, please contact _________________"]

{"sheet":"CO2 N2O","index":11,"n_rows":25,"n_cols":6,"rows_kept":25,"cut":false,"hidden":false,"merged":[[6,5,9,5],[22,2,22,3],[25,1,25,3],[16,2,16,3],[4,0,4,3],[9,0,9,3],[17,0,17,3],[13,0,13,3],[12,0,12,1],[8,2,8,3],[11,2,11,3],[19,2,19,3]]}
[{"$f":"+'Cover Page'!$B$29","v":"Annual Performance Report 2025"},null,{"$f":"+'Cover Page'!$B$33","v":"MVV Environment Baldovie Ltd"}]
[]
["Carbon dioxide emissions and biogenic content of waste inputs",null,null,null,null,"Notes:"]
[]
["Carbon dioxide emissions (all types of plant)"]
[null,"Annual mass of carbon dioxide released","tonnes ",162976]
[null,"Annual mass of carbon dioxide released per tonne of waste burned","t CO2 / t waste ",{"$f":"D6/'Operational Data'!G24","v":0.98169111377270901},null,"Note 1: All permits require operators to continuously monitor CO2 to EN14181 and flow to BS EN 16911-2 (unless otherwise agreed in writing). Operators must therefore use the results from these instruments to calculate their annual CO2 emissions. Where an operator does not have a flow meter calibrated to BS EN 16911-2, the averaged flow measurement from that year's periodic monitoring can be used instead. If the plant does not have calibrated CO2 CEMS, a suitably justified emissions factor can be used. \n\n"]
[null,"Annual mass of carbon dioxide released per MWh of energy exported","t CO2 / MWh export ",{"$f":"D6/'Operational Data'!G28","v":1.7278683658107334}]
[null,"Description of how annual carbon dioxide mass emission has been calculated. \nSee Note 1","Continuous Emissions Monitoring System (BS EN 14181/BS EN 15267-3)"]
["Nitrous oxide emissions (only plants which use ammonia or urea to abate NOx emissions)"]
[null,"Annual mass emissions of nitrous oxide","tonnes N2O",4.1399999999999997]
[null,"Description of how annual nitrous oxide mass emission has been calculated\nSee Note 2","Continuous Emissions Monitoring System (BS EN 14181/BS EN 15267-3)",null,null,"Note 2: All permits require operators to continuously monitor N2O to EN14181 and flow to BS EN 16911-2, unless otherwise agreed in writing. Operators must therefore use the results from these instruments to calculate their annual N2O emissions. Where an operator does not have a flow meter calibrated to BS EN 16911-2, the averaged flow measurement from periodic monitoring can be used instead. If the plant does not have calibrated N2O CEMS, data from periodic monitoring or a suitably justified emissions factor can be used instead."]
["Total annual carbon dioxide + nitrous oxide emissions. \nSee Note 3. ",null,"tonnes CO2e",{"$f":"D6+(D11*265)","v":164073.1},null,"Note 3: Total annual carbon dioxide and nitrous oxide emissions reported as carbon dioxide equivalent where 1 tonne nitrous oxide is equivalent to 265 tonnes carbon dioxide."]
["Biogenic CO2 emissions (See Note 4)",null,null,null,null,"Note 4: Only plants combusting residual municipal waste, refuse derived fuel or solid recovered fuel need complete this section. "]
[null,"Percentage of total carbon dioxide emissions arising from biogenic waste","%",0.52]
[null,"No. of measurements undertaken","Number",12]
[null,"Description of how percentage biogenic carbon dioxide emissions have been measured or calculated.\nSee Note 5","ASTM D6866-16 methodology (Line 3 only)",null,null,"Note 5: The results from C14 sampling should be used if this is carried out at the plant (either via an installed sampler or from spot samples).  \nOtherwise, as an approximation (and in lieu of any more accurate metrics which may be developed in future), the measured or estimated biogenic fraction by net calorific value (see Note 6) can be assumed to be the same as the biogenic CO2 fraction of the total CO2 emissions from the plant. "]
["Biogenic fraction of waste feedstock (See Note 4)"]
[null,"Yearly average biogenic percentage of the waste by net calorific value (NCV)","%",{"$f":"(0.39*0.52)/(0.47-0.08*0.52)","v":0.47338935574229701}]
[null,"Description of how biogenic percentage (by NCV) has been calculated or estimated. \nSee Note 6","Calculation outlined in REA Energy Content of Fuels C14 Report using the Line 3 biogenic carbon fraction.  \nPBE=(BGVC x BCAR)/(FGCV+ BCATx(BGCV-FGCV))",null,null,"Note 6: If C14 sampling is carried out at the plant, the methodology set out in the embedded document entitled \"Renewable Energy Association Energy Content of Fuels - Description of Method\" embedded below can be used to calculate the biogenic percentage by net calorific value. Otherwise, data from waste sampling or BIOMA software can be used; or if none of these are available, an estimated figure with justification or a figure assumed on the basis of up-to-date industry data can be used. "]
[null,"Yearly average biogenic percentage of the waste by mass","%",{"$f":"D15","v":0.52}]
[null,"If waste sampling undertaken, no. of samples used to ascertain average biogenic percentages above","Number","N/A"]
[null,"Description of how biogenic percentage (by mass) has been calculated or estimated. \nSee Note 7","Assumed based on biogenic flue gas CO2 fraction.",null,null,"Note 7: Where available, data from waste sampling should be used; otherwise, an estimated figure with justification can be used, or a figure assumed on the basis of up-to-date industry data. "]
[]
[null,"Comments:"]

{"sheet":"Residues","index":12,"n_rows":61,"n_cols":11,"rows_kept":61,"cut":false,"hidden":false,"merged":[[4,0,25,8],[4,10,13,13],[41,0,42,1],[41,2,42,6],[43,0,44,1],[43,2,44,6],[37,0,37,6],[38,0,38,1],[38,2,38,6],[30,0,31,6],[32,0,33,6],[34,0,35,6],[39,0,40,1],[39,2,40,6],[45,0,46,1],[45,2,46,6],[47,0,48,1],[47,2,48,6],[56,3,56,4],[52,2,53,2],[53,3,53,4],[53,5,53,6],[52,3,52,6],[51,0,51,6],[61,0,66,6],[57,3,57,4],[60,0,60,6],[52,0,53,1],[54,0,54,1],[55,0,55,1],[56,0,56,1],[57,0,57,1],[54,3,54,4],[55,3,55,4],[54,5,54,6],[55,5,55,6],[56,5,56,6],[57,5,57,6],[58,0,58,6]]}
[{"$f":"+'Cover Page'!$B$29","v":"Annual Performance Report 2025"},null,null,null,{"$f":"+'Cover Page'!$B$33","v":"MVV Environment Baldovie Ltd"}]
[]
["Summary of Residue Handling for the reporting year"]
[]
["FA, CA and APCr all taken to Augean at Port Clarence and treated using their R Code to be reused onsite.\n\nIBA taken to Rocksolid at Ladybank and treated, agreagate reused, metals recycled",null,null,null,null,null,null,null,null,null,"Include in here a summary of residue handling regimes and destinations "]
[]
[]
[]
[]
[]
[]
[]
[]
[]
[]
[]
[]
[]
[]
[]
[]
[]
[]
[]
[]
[]
[]
["Residue Quality Monitoring Requirements"]
[]
["Summary of monitoring undertaken and compliance"]
["Quarterly sampling of Line 1 & 2 and Line 3 residues as per Permit Condition 8.1.3. "]
[]
[]
[]
[]
[]
[]
["Commentary on any specific events"]
["Date & Event",null,"Description"]
["2025-02-13",null,"Line 1&2 IBA HP14 failure"]
[]
["2025-11-19",null,"Line 1&2 IBA HP14 failure"]
[]
[]
[]
[]
[]
[]
[]
[]
[]
["Residue Quality Monitoring Results"]
["Parameter (unit) ",null,"Limit*","Normal Operation "]
[null,null,null,"Bottom ash  ",null,"APC Residues"]
["Loss on Ignition (average %)",null,"<5%",1.56]
["Total Organic Carbon (average %)",null,"<3%",0.33]
["No. of Assessments Undertaken",null,"---",8,null,8]
["No. of Hazardous Results",null,"---",2]
["* The permit will specify a limit of either 5% loss on ignition or 3% total organic carbon. If both are measured anyway, please enter the results here, even where the limit does not apply. "]
[]
["Comments :"]

{"sheet":"Water","index":13,"n_rows":23,"n_cols":9,"rows_kept":23,"cut":false,"hidden":false,"merged":[[5,0,6,8],[7,0,8,8],[9,0,10,8],[12,0,12,8],[13,0,13,1],[13,2,13,8],[21,0,21,8],[22,0,22,2],[22,3,22,4],[14,0,15,1],[14,2,15,8],[16,0,17,1],[16,2,17,8],[18,0,19,1],[18,2,19,8],[23,0,23,2],[23,3,23,4],[24,0,24,2],[24,3,24,4],[25,0,25,2],[25,3,25,4],[29,0,29,2],[29,3,29,4],[26,0,26,2],[26,3,26,4],[27,0,27,2],[27,3,27,4],[28,0,28,2],[28,3,28,4]]}
[{"$f":"+'Cover Page'!$B$29","v":"Annual Performance Report 2025"},null,null,null,{"$f":"+'Cover Page'!$B$33","v":"MVV Environment Baldovie Ltd"}]
[]
["Emissions to Water"]
[]
["Summary of monitoring undertaken and compliance"]
["The MG plant is designed for zero emissions to water with process wastes being recycled and re-used within the plant. However, any surplus waste water arising is fed to the sewer and is monitored by Scottish Water under a Trade Effluent Consent. Trade effluent is monitored for pH, Flow and Temperature to comply with the Water Trade Effluent Consent Registration Number 3341A/3 for Lines 1 and 2 Plant and Consent Registration Number 80296A/01/C for Line 3 Plant, Daily visual checks are made on the drainage systems. Water is extracted from the Dighty Burn through a water abstraction licence CAR/1004581. The actual annual abstraction volume is reported in the operational data section."]
[]
["The FB plant uses considerable volumes of water to meet the requirements of the surface condenser and wet cooling tower for evaporation and blowdown."]
[]
["The discharge rate of Trade Effluent from both plants is metered"]
[]
[]
["Commentary on any specific events"]
["Date & Event",null,"Description"]
[]
[]
[]
[]
[]
[]
[]
["Emissions to Water / Sewer"]
["Parameter",null,null,"Monitoring Frequency",null,"Limit","Target","Max.","Average"]

{"sheet":"Air (periodic)","index":14,"n_rows":53,"n_cols":12,"rows_kept":53,"cut":false,"hidden":false,"merged":[[5,11,8,14],[8,0,8,10],[5,0,6,10],[20,0,20,1],[17,3,17,4],[18,0,18,1],[18,3,18,4],[19,0,19,1],[19,3,19,4],[9,3,11,4],[9,2,11,2],[9,0,11,1],[13,0,13,1],[13,3,13,4],[14,0,14,1],[9,11,10,14],[23,0,23,1],[20,3,20,4],[22,3,22,4],[9,5,9,10],[12,0,12,1],[12,3,12,4],[15,0,15,1],[15,3,15,4],[16,0,16,1],[16,3,16,4],[17,0,17,1],[14,3,14,4],[21,0,21,1],[21,3,21,4],[22,0,22,1],[23,3,23,4],[27,0,27,1],[28,0,28,1],[29,0,29,1],[24,0,24,1],[25,0,25,1],[26,0,26,1],[52,0,53,10],[37,0,37,1],[38,0,38,1],[34,0,34,1],[35,0,35,1],[50,0,50,1],[39,0,39,1],[40,0,40,1],[41,0,41,1],[42,0,42,1],[43,0,43,1],[44,0,44,1],[50,3,50,4],[41,3,41,4],[42,3,42,4],[48,3,48,4],[30,0,30,1],[31,0,31,1],[32,0,32,1],[46,3,46,4],[47,3,47,4],[45,0,45,1],[46,0,46,1],[47,0,47,1],[36,0,36,1],[44,3,44,4],[39,3,39,4],[45,3,45,4],[30,3,30,4],[31,3,31,4],[43,3,43,4],[37,3,37,4],[32,3,32,4],[38,3,38,4],[40,3,40,4],[51,0,51,10],[48,0,48,1],[33,0,33,1],[33,3,33,4],[49,0,49,1],[49,3,49,4],[34,3,34,4],[35,3,35,4],[36,3,36,4],[24,13,25,15],[26,13,27,13],[26,14,27,14],[26,15,27,15],[29,3,29,4],[24,3,24,4],[25,3,25,4],[26,3,26,4],[27,3,27,4],[28,3,28,4]]}
[{"$f":"+'Cover Page'!$B$29","v":"Annual Performance Report 2025"},null,null,null,{"$f":"+'Cover Page'!$B$33","v":"MVV Environment Baldovie Ltd"}]
[]
["Emissions to Air (periodically monitored)"]
[]
["Summary of monitoring undertaken, standards used and compliance",null,null,null,null,null,null,null,null,null,null,"Notes:"]
["Biannual testing of all lines as per Permit condition 6.4, per the requirements of BS EN ISO/IEC 17025\n\nLine 1:\nFirst half: 30th May,3rd – 4th July. Second half: 31st October, 2rd - 5th Decemeber\n\nLine 2:\nFirst half: 20th - 23rd May. Second half:  28th October - 6th November \n\nLine 3:\nFirst half: 27th - 30th May. Second half: 28nd  – 31st October\n\nQuarterly olfactory sampling on lines 1+2 was conducted by a specialised contractor in line with the site permit condition to implement and maintain an Odour Management Plan (OMP). All results were submitted to SEPA with the 2025 Quarterly reports.\n\nThe olfactory sampling systems test on line 3 was conducted by a specialised contractor in line with the site permit condition to implement and maintain an Odour Management Plan (OMP). Result submitted to SEPA with the Quarterly report.\n\n",null,null,null,null,null,null,null,null,null,null,"Template may require adjustment for any bespoke monitoring requirements of permit - please also check that all default ELV values, reference periods and the stated oxygen reference value match those for your plant, and edit if necessary!"]
[]
[]
["Results of emissions to air that are periodically monitored - oxygen reference 11% "]
["Substance",null,"Ref. Period","Emission Limit Value",null,"Average",null,null,null,null,null,"User to add additional tables/ columns as necessary, depending on whether quarterly or bi-annual reporting is required for the compliance year"]
[null,null,null,null,null,"A1",null,"A2",null,"A3"]
[null,null,null,null,null,"Half 1","Half 2","Half 1","Half 2","Half 1","Half 2"]
["Particulates",null,"Ave value","30 mg/m3",null,5.3,1.7,1.6,1.7,4.2,2.2000000000000002]
["PM10",null,"Ave value","None set mg/m3",null,0.35,0.47,0.36,10,0.18,0.27]
["PM2.5",null,"Ave value","None set mg/m3",null,0.25,0.47,0.26,0.69,0.13,0.2]
["Oxides of nitrogen",null,"Ave value","400 mg/m3",null,249,210,197,171,197,183]
["Sulphur dioxide",null,"Ave value","200 mg/m3",null,3.5,2.5,3.5,2.4,0.96,3.9]
["Carbon monoxide",null,"Ave value","100 mg/m3",null,5.4,7.6,3.8,13.6,8,6]
["Total Organic Carbon",null,"Ave value","20 mg/m3",null,1.5,0.38,0.22,0.77,0.82,4.3999999999999997E-2]
["Hydrogen chloride",null,"Ave value","60 mg/m3",null,12.6,7.6,17.2,2.7,6.2,3.2]
["Hydrogen fluoride",null,"Ave value","1 mg/m3",null,0.19,2.1000000000000001E-2,0.1,2.4E-2,0.11,0.16]
["Ammonia",null,"Ave value","10 mg/m3",null,0.41,3.6,0.33,1.3,0.41,4.4000000000000004]
["Nitrous oxide",null,"Ave value","None set mg/m3",null,3.4,4.3,2.5,1.9,4.8,8.1]
["Cd and Tl and their compounds",null,"0.5-8hrs","0.02 mg/m3",null,2.0999999999999999E-3,1.57E-3,1.5E-3,1.5E-3,1.2999999999999999E-3,1.1000000000000001E-3]
["Hg and its compounds",null,"0.5-8hrs","0.02 mg/m3",null,9.7000000000000005E-4,9.2000000000000003E-4,7.2000000000000005E-4,6.8999999999999997E-4,9.2000000000000003E-4,7.9000000000000001E-4]
["Sb, As, Pb, Cr, Co, Cu, Mn, Ni, V and their compounds",null,"0.5-8hrs","0.3 mg/m3",null,4.2999999999999997E-2,1.0999999999999999E-2,1.9E-2,1.0999999999999999E-2,6.7000000000000004E-2,4.8000000000000001E-2]
["Polychlorinated dibenzo-p-dioxins and furans  (I-TEQ)",null,"6-8hrs","0.04/0.06 ng/m3",null,8.2000000000000007E-3,2.8E-3,1.9E-2,1.6E-2,5.4000000000000003E-3,4.2000000000000002E-4]
["PCBs (WHO-TEQ Humans / Mammals)",null,"6-8hrs","None set ng/m3",null,6.7000000000000002E-5,2.5000000000000001E-5,8.9999999999999993E-3,1.8E-3,5.1999999999999995E-4,3.4E-5]
["PCBs (WHO-TEQ Fish)",null,"6-8hrs","None set ng/m3",null,2.8E-3,1.1000000000000001E-3,1.4999999999999999E-2,3.5000000000000001E-3,1.1999999999999999E-3,2.5000000000000001E-4]
["PCBs (WHO-TEQ Birds)",null,"6-8hrs","None set ng/m3",null,6.7000000000000002E-5,2.5000000000000001E-5,4.2000000000000002E-4,8.6000000000000003E-5,2.5000000000000001E-5,2.2000000000000001E-6]
["Polychlorinated dibenzo-p-dioxins and furans (WHO-TEQ Humans / Mammals)",null,"6-8hrs","None set ng/m3",null,7.6E-3,2.3999999999999998E-3,1.7999999999999999E-2,1.2999999999999999E-2,5.4000000000000003E-3,3.8999999999999999E-4]
["Polychlorinated dibenzo-p-dioxins and furans  (WHO-TEQ Fish)",null,"6-8hrs","None set ng/m3",null,1.0999999999999999E-2,4.7000000000000002E-3,2.4E-2,0.03,6.6E-3,1.2999999999999999E-3]
["Polychlorinated dibenzo-p-dioxins and furans  (WHO-TEQ Birds)",null,"6-8hrs","None set ng/m3",null,6.7000000000000002E-3,3.0999999999999999E-3,1.9E-2,1.7000000000000001E-2,4.4000000000000003E-3,3.8000000000000002E-4]
["Polybrominated dibenzo-p-dioxins and furans  (I-TEQ)",null,"6-8hrs","None set ng/m3",null,4.1000000000000003E-3,7.6000000000000004E-4,3.2000000000000002E-3,2E-3,2.5999999999999999E-3,2.9E-4]
["Anthanthrene",null,"6-8hrs","None set µg/m3",null,3.8666666666666662E-2,2.8000000000000001E-2,2.5666666666666667E-2,2.8000000000000001E-2,1.7000000000000001E-2,1.1666666666666667E-2]
["Benzo(a)anthracene",null,"6-8hrs","None set µg/m3",null,4.5000000000000005E-2,2.8000000000000001E-2,2.9666666666666664E-2,2.8000000000000001E-2,0.02,1.1666666666666667E-2]
["Benzo(a)pyrene",null,"6-8hrs","None set µg/m3",null,3.8666666666666662E-2,2.8000000000000001E-2,2.5999999999999999E-2,2.8000000000000001E-2,1.7000000000000001E-2,1.1666666666666667E-2]
["Benzo(b)fluoranthene",null,"6-8hrs","None set µg/m3",null,4.4000000000000004E-2,2.8000000000000001E-2,2.5666666666666667E-2,2.8000000000000001E-2,4.8333333333333339E-2,1.1666666666666667E-2]
["Benzo(b)naptho(2,1-d) thiophene",null,"6-8hrs","None set µg/m3",null,3.9666666666666663E-2,2.8000000000000001E-2,2.5666666666666667E-2,2.8000000000000001E-2,4.8333333333333339E-2,1.1666666666666667E-2]
["Benzo(c)phenanthrene",null,"6-8hrs","None set µg/m3",null,3.8666666666666662E-2,2.8000000000000001E-2,2.5666666666666667E-2,2.8000000000000001E-2,2.4000000000000004E-2,1.1666666666666667E-2]
["Benzo(ghi)perylene",null,"6-8hrs","None set µg/m3",null,3.8666666666666662E-2,7.5666666666666674E-2,2.5666666666666667E-2,2.8999999999999998E-2,3.5999999999999997E-2,1.1666666666666667E-2]
["Benzo(k)fluoranthene",null,"6-8hrs","None set µg/m3",null,3.8666666666666662E-2,2.8000000000000001E-2,2.5666666666666667E-2,2.8000000000000001E-2,1.7000000000000001E-2,1.1666666666666667E-2]
["Cholanthrene",null,"6-8hrs","None set µg/m3",null,3.8666666666666662E-2,2.8000000000000001E-2,2.5666666666666667E-2,2.8000000000000001E-2,1.7000000000000001E-2,1.1666666666666667E-2]
["Chrysene",null,"6-8hrs","None set µg/m3",null,8.2333333333333328E-2,2.8000000000000001E-2,4.7333333333333338E-2,2.8000000000000001E-2,0.11966666666666666,1.1666666666666667E-2]
["Cyclopenta(cd)pyrene",null,"6-8hrs","None set µg/m3",null,5.9333333333333342E-2,2.8000000000000001E-2,2.5666666666666667E-2,2.8000000000000001E-2,1.9666666666666666E-2,1.1666666666666667E-2]
["Dibenzo(ai)pyrene",null,"6-8hrs","None set µg/m3",null,3.8666666666666662E-2,2.8000000000000001E-2,2.5666666666666667E-2,2.8000000000000001E-2,1.7000000000000001E-2,1.1666666666666667E-2]
["Dibenzo(ah)anthracene",null,"6-8hrs","None set µg/m3",null,3.8666666666666662E-2,2.8000000000000001E-2,2.5666666666666667E-2,2.8000000000000001E-2,1.7000000000000001E-2,1.1666666666666667E-2]
["Fluoranthene",null,"6-8hrs","None set µg/m3",null,0.66333333333333322,0.39333333333333337,0.86,0.33333333333333331,0.55999999999999994,9.6666666666666679E-2]
["Indeno(123-cd) pyrene",null,"6-8hrs","None set µg/m3",null,3.8666666666666662E-2,2.8000000000000001E-2,2.5666666666666667E-2,2.8000000000000001E-2,1.7000000000000001E-2,1.1666666666666667E-2]
["Naphthalene",null,"6-8hrs","None set µg/m3",null,46.633333333333333,4.3666666666666663,33.6,4.3,20.333333333333332,1.5666666666666667]
["Flu Gas Flow rate",null,"Ave value","Nm3/Hour",null,37421,33135,36985,33631,99952,95752]
["Comments :"]
["\nAll periodic monitoring results were within their respective permitted ELVs.\n\nSEPA organised periodic monitoring across all lines, which was conducted between the 3rd and 14th of February. Line 1 experienced an exceedance of NH3 during this testing, but after investigation, it was determined that the elevated emissions were due to a fault in the sampling equipment.\n\nAdditional Line 1 quarterly PCDD/F testing was conducted on the 24th of February and the 30th of September results were all within the permitted ELVs"]

{"sheet":"Air (CEMS)","index":15,"n_rows":33,"n_cols":14,"rows_kept":33,"cut":false,"hidden":false,"merged":[[14,13,15,13],[14,14,15,14],[14,15,15,15],[12,13,13,15],[31,0,31,12],[21,0,22,0],[19,0,20,0],[17,0,18,0],[15,0,16,0],[23,0,24,0],[33,0,34,12],[13,0,14,0],[5,0,6,12],[7,0,8,12],[10,0,10,12],[11,0,12,0],[11,2,12,2],[11,1,12,1],[11,3,11,4],[11,5,11,6],[11,7,11,8],[11,9,11,10],[11,11,11,12],[27,0,28,0],[29,0,30,0],[25,0,26,0]]}
[{"$f":"+'Cover Page'!$B$29","v":"Annual Performance Report 2025"},null,null,null,null,null,null,null,{"$f":"+'Cover Page'!$B$33","v":"MVV Environment Baldovie Ltd"}]
[]
["Emissions to Air (continuously monitored)"]
[null,null,null,null,null,null,null,null,null,null,null,null,null,"Notes:"]
["Summary of monitoring undertaken, standards used and compliance",null,null,null,null,null,null,null,null,null,null,null,null,"Template may require adjustment for any bespoke monitoring requirements of permit"]
["As required by Permit condition 6.2.2, 6.2.5 Continuous Emissions Monitoring System in compliance with the requirements of BS EN 14181",null,null,null,null,null,null,null,null,null,null,null,null,"Please check that all default ELV values match those for your plant and edit if necessary!"]
[null,null,null,null,null,null,null,null,null,null,null,null,null,"Report to 1 decimal place"]
[]
[]
[]
["Results of emissions to air that are continuously monitored (maximum and average values for each line) - oxygen reference 11%"]
["Substance","Reference Period","Emission Limit Value","A1",null,"A2",null,"A3",null,"A4",null,"A5"]
[null,null,null,"Max.","Avg.","Max.","Avg.","Max.","Avg.","Max.","Avg.","Max.","Avg."]
["Oxides of nitrogen","Daily mean","180 mg/m3 ",{"$f":"NOx!$O$19","v":191.7},{"$f":"NOx!$N$19","v":170.80833333333337},{"$f":"OFFSET(NOx!$O$19,15,)","v":179.6},{"$f":"OFFSET(NOx!$N$19,15,)","v":170.75},{"$f":"OFFSET(NOx!$O$19,30,)","v":172.7},{"$f":"OFFSET(NOx!$N$19,30,)","v":166.54999999999998}]
[null,"½ hourly mean","400 mg/m3 ",{"$f":"NOx!$M$19","v":292.8},{"$f":"NOx!$L$19","v":170.92499999999998},{"$f":"OFFSET(NOx!$M$19,15,)","v":302.5},{"$f":"OFFSET(NOx!$L$19,15,)","v":171.14166666666665},{"$f":"OFFSET(NOx!$M$19,30,)","v":222},{"$f":"OFFSET(NOx!$L$19,30,)","v":166.60833333333332}]
["Particulates","Daily mean","5 mg/m3",{"$f":"Particulates!$O$19","v":1},{"$f":"Particulates!$N$19","v":0.23333333333333339},{"$f":"OFFSET(Particulates!$O$19,15,)","v":5.2},{"$f":"OFFSET(Particulates!$N$19,15,)","v":1.075},{"$f":"OFFSET(Particulates!$O$19,30,)","v":3.3},{"$f":"OFFSET(Particulates!$N$19,30,)","v":0.36666666666666653}]
[null,"½ hourly mean","30 mg/m3 ",{"$f":"Particulates!$M$19","v":6.8},{"$f":"Particulates!$L$19","v":0.25833333333333341},{"$f":"OFFSET(Particulates!$M$19,15,)","v":23.9},{"$f":"OFFSET(Particulates!$L$19,15,)","v":1.0833333333333333},{"$f":"OFFSET(Particulates!$M$19,30,)","v":8.1},{"$f":"OFFSET(Particulates!$L$19,30,)","v":0.40833333333333316}]
["Total Organic Carbon ","Daily mean","10 mg/m3 ",{"$f":"TOC!$O$19","v":25.3},{"$f":"TOC!$N$19","v":1.3416666666666666},{"$f":"OFFSET(TOC!$O$19,15,)","v":7.8},{"$f":"OFFSET(TOC!$N$19,15,)","v":0.69166666666666676},{"$f":"OFFSET(TOC!$O$19,30,)","v":3.6},{"$f":"OFFSET(TOC!$N$19,30,)","v":0.34166666666666662}]
[null,"½ hourly mean","20 mg/m3 ",{"$f":"TOC!$M$19","v":94.1},{"$f":"TOC!$L$19","v":1.208333333333333},{"$f":"OFFSET(TOC!$M$19,15,)","v":38.299999999999997},{"$f":"OFFSET(TOC!$L$19,15,)","v":0.70833333333333337},{"$f":"OFFSET(TOC!$M$19,30,)","v":417.5},{"$f":"OFFSET(TOC!$L$19,30,)","v":0.44166666666666665}]
["Hydrogen chloride ","Daily mean","8 mg/m3 ",{"$f":"HCl!$O$19","v":6.9},{"$f":"HCl!$N$19","v":2.5249999999999999},{"$f":"OFFSET(HCl!$O$19,15,)","v":6.9},{"$f":"OFFSET(HCl!$N$19,15,)","v":3.4083333333333332},{"$f":"OFFSET(HCl!$O$19,30,)","v":6.4},{"$f":"OFFSET(HCl!$N$19,30,)","v":3.4333333333333331}]
[null,"½ hourly mean","60 mg/m3 ",{"$f":"HCl!$M$19","v":42.1},{"$f":"HCl!$L$19","v":2.6666666666666665},{"$f":"OFFSET(HCl!$M$19,15,)","v":18.5},{"$f":"OFFSET(HCl!$L$19,15,)","v":3.5083333333333329},{"$f":"OFFSET(HCl!$M$19,30,)","v":30},{"$f":"OFFSET(HCl!$L$19,30,)","v":3.5}]
["Sulphur dioxide","Daily mean","40 mg/m3 ",{"$f":"'SO2'!$O$19","v":19.600000000000001},{"$f":"'SO2'!$N$19","v":12.433333333333332},{"$f":"OFFSET('SO2'!$O$19,15,)","v":26.5},{"$f":"OFFSET('SO2'!$N$19,15,)","v":7.7749999999999986},{"$f":"OFFSET('SO2'!$O$19,30,)","v":10.4},{"$f":"OFFSET('SO2'!$N$19,30,)","v":1.8}]
[null,"½ hourly mean","200 mg/m3 ",{"$f":"'SO2'!$M$19","v":100},{"$f":"'SO2'!$L$19","v":12.591666666666663},{"$f":"OFFSET('SO2'!$M$19,15,)","v":44.6},{"$f":"OFFSET('SO2'!$L$19,15,)","v":7.8666666666666663},{"$f":"OFFSET('SO2'!$M$19,30,)","v":83.3},{"$f":"OFFSET('SO2'!$L$19,30,)","v":1.8166666666666667}]
["Carbon monoxide ","Daily mean","50 mg/m3 ",{"$f":"'CO 95% 10 min'!$Q$19","v":32.9},{"$f":"'CO 95% 10 min'!$P$19","v":17.899999999999999},{"$f":"OFFSET('CO 95% 10 min'!$Q$19,15,)","v":41.7},{"$f":"OFFSET('CO 95% 10 min'!$P$19,15,)","v":23.7},{"$f":"OFFSET('CO 95% 10 min'!$Q$19,30,)","v":18.7},{"$f":"OFFSET('CO 95% 10 min'!$P$19,30,)","v":7.3}]
[null,"95%ile 10-min avg *","150 mg/m3 *",{"$f":"'CO 95% 10 min'!$O$19","v":338.6},{"$f":"'CO 95% 10 min'!$M$19","v":72.900000000000006},{"$f":"OFFSET('CO 95% 10 min'!$O$19,15,)","v":324.10000000000002},{"$f":"OFFSET('CO 95% 10 min'!$M$19,15,)","v":87},{"$f":"OFFSET('CO 95% 10 min'!$O$19,30,)","v":1297.7},{"$f":"OFFSET('CO 95% 10 min'!$M$19,30,)","v":39.6}]
[" Ammonia","Daily mean","15 mg/m3 ",{"$f":"'NH3'!$O$19","v":7.9},{"$f":"'NH3'!$N$19","v":0.52500000000000002},{"$f":"OFFSET('NH3'!$O$19,15,)","v":7.2},{"$f":"OFFSET('NH3'!$N$19,15,)","v":0.73333333333333339},{"$f":"OFFSET('NH3'!$O$19,30,)","v":2},{"$f":"OFFSET('NH3'!$N$19,30,)","v":3.3333333333333333E-2}]
[null,"½ hourly mean","ELV/ None set* (mg/m3)*",{"$f":"'NH3'!$M$19","v":24.6},{"$f":"'NH3'!$L$19","v":0.45},{"$f":"OFFSET('NH3'!$M$19,15,)","v":16.7},{"$f":"OFFSET('NH3'!$L$19,15,)","v":0.71666666666666679},{"$f":"OFFSET('NH3'!$M$19,30,)","v":11.6},{"$f":"OFFSET('NH3'!$L$19,30,)","v":5.8333333333333341E-2}]
["Nitrous oxide","Daily mean","None set (mg/m3 )",10.6,2.0916666666666668,37.5,1.8416666666666668,17.5,3.808333333333334]
[null,"½ hourly mean","None set (mg/m3 )",46.1,1.8999999999999997,110.1,1.6750000000000005,717.2,3.8249999999999997]
["Flow ","Daily mean","None set (Nm3/Hour)",43831.9,34780.933333333327,34755,29082.95,108551.3,97494.025000000009]
[null,"½ hourly mean","None set (Nm3/Hour)",45170,34801.441666666658,60476,29073.983333333337,127301.8,97508.974999999991]
["* = delete as appropriate, depending on whether your plant has half-hourly or 10-min CO ELVs\n"]
["Comments :"]

{"sheet":"HCl","index":16,"n_rows":79,"n_cols":17,"rows_kept":79,"cut":false,"hidden":false,"merged":[[12,16,15,18],[51,9,63,9],[66,9,78,9],[4,9,4,14],[4,1,4,3],[4,4,4,6],[48,0,51,6],[47,0,47,6],[6,9,18,9],[21,9,33,9],[36,9,48,9],[3,16,7,18],[9,16,11,18],[18,4,18,6],[17,16,17,18],[18,16,19,18]]}
[{"$f":"+'Cover Page'!$B$29","v":"Annual Performance Report 2025"},null,null,null,{"$f":"+'Cover Page'!$B$33","v":"MVV Environment Baldovie Ltd"}]
[]
["Monitoring of Hydrogen Chloride emissions",null,null,"Whole Installation",null,null,"See  Notes in Cell Q3",null,null,{"$f":"+A3","v":"Monitoring of Hydrogen Chloride emissions"},null,null,null,"Per Combustion Line",null,null,"Notes:"]
[null,null,null,null,null,null,null,null,null,null,null,null,null,null,null,null,"User to add logic to complete Whole installation, Table A5:G18. From the data in Per Combustion Line, Table J6:O79, subject to No. of lines installed"]
[{"$f":"+'Cover Page'!C39","v":2025},"1/2 Hourly Reference Periods",null,null,"Daily Reference Periods"]
["mg/Nm3","1/2 hourly HCl ELV","Monthly mean of half-hourly averages","Highest half- hourly average","Daily HCl ELV","Monthly mean of  daily averages","Highest daily average",null,null,{"$f":"+A5","v":2025},"mg/Nm3","Monthly mean of half-hourly averages","Highest half- hourly average","Monthly mean of  daily averages","Highest daily average"]
["Jan",60,{"$f":"AVERAGE(L7,L22,M37)","v":5.3},{"$f":"MAX(M7,M22,N37)","v":14.2},8,{"$f":"AVERAGE(N7,N22,N37)","v":3.7000000000000006},{"$f":"MAX(O7,O22,O37)","v":6.4},null,null,"A1","Jan",3.8,14.2,3.5,5.9]
["Feb",60,{"$f":"AVERAGE(L8,L23,M38)","v":8.5666666666666664},{"$f":"MAX(M8,M23,N38)","v":8.9},8,{"$f":"AVERAGE(N8,N23,N38)","v":2.6666666666666665},{"$f":"MAX(O8,O23,O38)","v":5.9},null,null,null,"Feb",1.4,8.9,1.3,1.7]
["Mar",60,5.0333333333333332,10.8,8,2.9,5.6,null,null,null,"Mar",2.1,10.8,2.2000000000000002,5.3,null,"Whole Installation table A5:G18:"]
["Apr",60,4.7,12.8,8,2.5666666666666669,6.4,null,null,null,"Apr",1.9,12.8,1.8,3.3,null,"Mean: for 1/2 hourly and daily periods calculate mean of values across all operational combustion lines for the month"]
["May",60,4.333333333333333,10.3,8,3.3000000000000003,6.4,null,null,null,"May",1.5,7.8,1.5,5]
["Jun",60,4.7666666666666666,25.6,8,3.3000000000000003,5.7,null,null,null,"Jun",3.1,25.6,2.9,5.4]
["Jul",60,6.0333333333333341,37.700000000000003,8,3.3000000000000003,6.9,null,null,null,"Jul",3.4,37.700000000000003,3.1,5.3,null,"Maximum: for 1/2 hourly and daily periods use the highest value across all operational combustion lines for the month"]
["Aug",60,9.1,42.1,8,3.5333333333333337,6.9,null,null,null,"Aug",3.2,42.1,3.1,6.9]
["Sep",60,9,21.2,8,3.4666666666666668,6.7,null,null,null,"Sep",3.1,21.2,3,6.7]
["Oct",60,11.933333333333332,14.2,8,3,6.5,null,null,null,"Oct",3.4,14.2,3,6.5]
["Nov",60,9.2333333333333343,32.799999999999997,8,2.6333333333333333,6.2,null,null,null,"Nov",2.7,32.799999999999997,2.5,5.4]
["Dec",60,5.7,8.6,8,3.1,6.5,null,null,null,"Dec",2.4,8.6,2.4,5.5,null,"*Value of Daily ELV:"]
[null,null,null,null,null,null,null,null,null,null,"Annual",{"$f":"AVERAGE(L7:L18)","v":2.6666666666666665},{"$f":"MAX(M7:M18)","v":42.1},{"$f":"AVERAGE(N7:N18)","v":2.5249999999999999},{"$f":"MAX(O7:O18)","v":6.9},null,"ELV should be corrected as necessary to match ELV in Table 6.2"]
[]
[null,null,null,null,null,null,null,null,null,{"$f":"+A5","v":2025},"mg/Nm3","Monthly mean of half-hourly averages","Highest half- hourly average","Monthly mean of  daily averages","Highest daily average"]
[null,null,null,null,null,null,null,null,null,"A2","Jan",4,8,3.9,6.4]
[null,null,null,null,null,null,null,null,null,null,"Feb",2.4,7.2,2.2999999999999998,5]
[null,null,null,null,null,null,null,null,null,null,"Mar",2.2999999999999998,7.6,2,5.2]
[null,null,null,null,null,null,null,null,null,null,"Apr",1.5,8.1,1.5,2.5]
[null,null,null,null,null,null,null,null,null,null,"May",3.7,10.3,3.5,6.4]
[null,null,null,null,null,null,null,null,null,null,"Jun",3.7,14.1,3.5,5.7]
[null,null,null,null,null,null,null,null,null,null,"Jul",4.3,9.3000000000000007,4.3,6.9]
[null,null,null,null,null,null,null,null,null,null,"Aug",5.5,11.1,5.3,6.5]
[null,null,null,null,null,null,null,null,null,null,"Sep",4.0999999999999996,18.5,4.3,6.6]
[null,null,null,null,null,null,null,null,null,null,"Oct",2.4,7.4,2.5,6.5]
[null,null,null,null,null,null,null,null,null,null,"Nov",2.9,15.7,2.9,6.2]
[null,null,null,null,null,null,null,null,null,null,"Dec",5.3,8.5,4.9000000000000004,6.5]
[null,null,null,null,null,null,null,null,null,null,"Annual",{"$f":"AVERAGE(L22:L33)","v":3.5083333333333329},{"$f":"MAX(M22:M33)","v":18.5},{"$f":"AVERAGE(N22:N33)","v":3.4083333333333332},{"$f":"MAX(O22:O33)","v":6.9}]
[]
[null,null,null,null,null,null,null,null,null,{"$f":"+A5","v":2025},"mg/Nm3","Monthly mean of half-hourly averages","Highest half- hourly average","Monthly mean of  daily averages","Highest daily average"]
[null,null,null,null,null,null,null,null,null,"A3","Jan",3.7,8.1,3.7,5]
[null,null,null,null,null,null,null,null,null,null,"Feb",4.5,21.9,4.4000000000000004,5.9]
[null,null,null,null,null,null,null,null,null,null,"Mar",4.5999999999999996,10.7,4.5,5.6]
[null,null,null,null,null,null,null,null,null,null,"Apr",4.5999999999999996,10.7,4.4000000000000004,6.4]
[null,null,null,null,null,null,null,null,null,null,"May",5,7.8,4.9000000000000004,5.8]
[null,null,null,null,null,null,null,null,null,null,"Jun",3.6,7.5,3.5,5.2]
[null,null,null,null,null,null,null,null,null,null,"Jul",2.5,10.4,2.5,4.5999999999999996]
[null,null,null,null,null,null,null,null,null,null,"Aug",2.2999999999999998,18.600000000000001,2.2000000000000002,4.3]
[null,null,null,null,null,null,null,null,null,null,"Sep",3.1,19.8,3.1,5.3]
[null,null,null,null,null,null,null,null,null,null,"Oct",3.5,30,3.5,5.4]
[null,null,null,null,null,null,null,null,null,null,"Nov",2.5,22.1,2.5,4.8]
["Comments :",null,null,null,null,null,null,null,null,null,"Dec",2.1,9.4,2,3.6]
[null,null,null,null,null,null,null,null,null,null,"Annual",{"$f":"AVERAGE(L37:L48)","v":3.5},{"$f":"MAX(M37:M48)","v":30},{"$f":"AVERAGE(N37:N48)","v":3.4333333333333331},{"$f":"MAX(O37:O48)","v":6.4}]
[]
[null,null,null,null,null,null,null,null,null,{"$f":"+A5","v":2025},"mg/Nm3","Monthly mean of half-hourly averages","Highest half- hourly average","Monthly mean of  daily averages","Highest daily average"]
[null,null,null,null,null,null,null,null,null,"A4","Jan"]
[null,null,null,null,null,null,null,null,null,null,"Feb"]
[null,null,null,null,null,null,null,null,null,null,"Mar"]
[null,null,null,null,null,null,null,null,null,null,"Apr"]
[null,null,null,null,null,null,null,null,null,null,"May"]
[null,null,null,null,null,null,null,null,null,null,"Jun"]
[null,null,null,null,null,null,null,null,null,null,"Jul"]
[null,null,null,null,null,null,null,null,null,null,"Aug"]
[null,null,null,null,null,null,null,null,null,null,"Sep"]
[null,null,null,null,null,null,null,null,null,null,"Oct"]
[null,null,null,null,null,null,null,null,null,null,"Nov"]
[null,null,null,null,null,null,null,null,null,null,"Dec"]
[null,null,null,null,null,null,null,null,null,null,"Annual",{"$f":"AVERAGE(L52:L63)","v":{"$error":"#DIV/0!"}},{"$f":"MAX(M52:M63)","v":0},{"$f":"AVERAGE(N52:N63)","v":{"$error":"#DIV/0!"}},{"$f":"MAX(O52:O63)","v":0}]
[]
[null,null,null,null,null,null,null,null,null,{"$f":"+A5","v":2025},"mg/Nm3","Monthly mean of half-hourly averages","Highest half- hourly average","Monthly mean of  daily averages","Highest daily average"]
[null,null,null,null,null,null,null,null,null,"A5","Jan"]
[null,null,null,null,null,null,null,null,null,null,"Feb"]
[null,null,null,null,null,null,null,null,null,null,"Mar"]
[null,null,null,null,null,null,null,null,null,null,"Apr"]
[null,null,null,null,null,null,null,null,null,null,"May"]
[null,null,null,null,null,null,null,null,null,null,"Jun"]
[null,null,null,null,null,null,null,null,null,null,"Jul"]
[null,null,null,null,null,null,null,null,null,null,"Aug"]
[null,null,null,null,null,null,null,null,null,null,"Sep"]
[null,null,null,null,null,null,null,null,null,null,"Oct"]
[null,null,null,null,null,null,null,null,null,null,"Nov"]
[null,null,null,null,null,null,null,null,null,null,"Dec"]
[null,null,null,null,null,null,null,null,null,null,"Annual",{"$f":"AVERAGE(L67:L78)","v":{"$error":"#DIV/0!"}},{"$f":"MAX(M67:M78)","v":0},{"$f":"AVERAGE(N67:N78)","v":{"$error":"#DIV/0!"}},{"$f":"MAX(O67:O78)","v":0}]

{"sheet":"SO2","index":17,"n_rows":79,"n_cols":17,"rows_kept":79,"cut":false,"hidden":false,"merged":[[3,16,7,18],[9,16,11,18],[12,16,15,18],[66,9,78,9],[4,1,4,3],[4,4,4,6],[4,9,4,14],[6,9,18,9],[21,9,33,9],[36,9,48,9],[47,0,47,6],[48,0,51,6],[51,9,63,9],[18,4,18,6],[17,16,17,18],[18,16,19,18]]}
[{"$f":"+'Cover Page'!$B$29","v":"Annual Performance Report 2025"},null,null,null,{"$f":"+'Cover Page'!$B$33","v":"MVV Environment Baldovie Ltd"}]
[]
["Monitoring of Sulphur dioxide emissions",null,null,"Whole Installation",null,null,"See  Notes in Cell Q3",null,null,{"$f":"+A3","v":"Monitoring of Sulphur dioxide emissions"},null,null,null,"Per Combustion Line",null,null,"Notes:"]
[null,null,null,null,null,null,null,null,null,null,null,null,null,null,null,null,"User to add logic to complete Whole installation, Table A5:G18. From the data in Per Combustion Line, Table J6:O79, subject to No. of lines installed"]
[{"$f":"+'Cover Page'!C39","v":2025},"1/2 Hourly Reference Periods",null,null,"Daily Reference Periods"]
["mg/Nm3","1/2 hourly SO2 ELV","Monthly mean of half-hourly averages","Highest half- hourly average","Daily SO2 ELV","Monthly mean of  daily averages","Highest daily average",null,null,{"$f":"+A5","v":2025},"mg/Nm3","Monthly mean of half-hourly averages","Highest half- hourly average","Monthly mean of  daily averages","Highest daily average"]
["Jan",200,{"$f":"AVERAGE(L7,L22,M37)","v":13.5},{"$f":"MAX(M7,M22,M37)","v":40.5},20,{"$f":"AVERAGE(N7,N22,N37)","v":6.4666666666666677},{"$f":"MAX(O7,O22,O37)","v":16.3},null,null,"A1","Jan",13.5,40.5,13.3,16.3]
["Feb",200,{"$f":"AVERAGE(L8,L23,M38)","v":23.833333333333332},{"$f":"MAX(M8,M23,M38)","v":52.5},20,{"$f":"AVERAGE(N8,N23,N38)","v":6.8333333333333321},{"$f":"MAX(O8,O23,O38)","v":15.9},null,null,null,"Feb",13.2,32.5,13.2,15.9]
["Mar",200,17.666666666666668,{"$f":"MAX(M9,M24,M39)","v":34.200000000000003},20,6.4666666666666659,16.2,null,null,null,"Mar",12.7,29.6,12.5,16.2,null,"Whole Installation table A5:G18:"]
["Apr",200,12.6,32.299999999999997,20,5.4333333333333336,16.8,null,null,null,"Apr",12.2,29.1,12.1,16.8,null,"Mean: for 1/2 hourly and daily periods calculate mean of values across all operational combustion lines for the month"]
["May",200,11.1,30.2,20,5.9333333333333336,{"$f":"MAX(O11,O26,O41)","v":16.7},null,null,null,"May",11.8,29.2,11.6,16.7]
["Jun",200,31.033333333333331,73.099999999999994,20,7.2,16.100000000000001,null,null,null,"Jun",12.5,33.9,12.2,16.100000000000001]
["Jul",200,35,83.3,20,8.6,19.600000000000001,null,null,null,"Jul",12.8,39.6,13,19.600000000000001,null,"Maximum: for 1/2 hourly and daily periods use the highest value across all operational combustion lines for the month"]
["Aug",200,32.4,73.8,20,8.6,16.399999999999999,null,null,null,"Aug",13,36.4,13.1,16.399999999999999]
["Sep",200,32.800000000000004,74.8,20,9,26.5,null,null,null,"Sep",13.6,43.5,13.3,16.100000000000001]
["Oct",200,33.233333333333334,74.5,20,9.0333333333333332,17.600000000000001,null,null,null,"Oct",13.7,49.6,12.8,16.899999999999999]
["Nov",200,32.06666666666667,100,20,7.4333333333333327,18,null,null,null,"Nov",11,100,11.1,18]
["Dec",200,17.833333333333332,32.6,20,7.0333333333333341,14.7,null,null,null,"Dec",11.1,26.8,11,14.7,null,"*Value of Daily ELV:"]
[null,null,null,null,null,null,null,null,null,null,"Annual",{"$f":"AVERAGE(L7:L18)","v":12.591666666666663},{"$f":"MAX(M7:M18)","v":100},{"$f":"AVERAGE(N7:N18)","v":12.433333333333332},{"$f":"MAX(O7:O18)","v":19.600000000000001},null,"ELV should be corrected as necessary to match ELV in Table 6.2"]
[]
[null,null,null,null,null,null,null,null,null,{"$f":"+A5","v":2025},"mg/Nm3","Monthly mean of half-hourly averages","Highest half- hourly average","Monthly mean of  daily averages","Highest daily average"]
[null,null,null,null,null,null,null,null,null,"A2","Jan",5.6,29.6,5.3,10.3]
[null,null,null,null,null,null,null,null,null,null,"Feb",5.8,34.6,6.1,15.8]
[null,null,null,null,null,null,null,null,null,null,"Mar",6.1,31.4,5,11.4]
[null,null,null,null,null,null,null,null,null,null,"Apr",3.4,32.299999999999997,3.4,11.8]
[null,null,null,null,null,null,null,null,null,null,"May",5.7,30.2,5.4,11.3]
[null,null,null,null,null,null,null,null,null,null,"Jun",7.5,34.200000000000003,7.3,12.5]
[null,null,null,null,null,null,null,null,null,null,"Jul",8.9,27.6,9.1,19.2]
[null,null,null,null,null,null,null,null,null,null,"Aug",10.4,28.9,10.3,15.2]
[null,null,null,null,null,null,null,null,null,null,"Sep",10,42.9,10.8,26.5]
[null,null,null,null,null,null,null,null,null,null,"Oct",11.5,36.9,11.7,17.600000000000001]
[null,null,null,null,null,null,null,null,null,null,"Nov",9.6999999999999993,44.6,9.8000000000000007,17.100000000000001]
[null,null,null,null,null,null,null,null,null,null,"Dec",9.8000000000000007,30.2,9.1,12.1]
[null,null,null,null,null,null,null,null,null,null,"Annual",{"$f":"AVERAGE(L22:L33)","v":7.8666666666666663},{"$f":"MAX(M22:M33)","v":44.6},{"$f":"AVERAGE(N22:N33)","v":7.7749999999999986},{"$f":"MAX(O22:O33)","v":26.5}]
[]
[null,null,null,null,null,null,null,null,null,{"$f":"+A5","v":2025},"mg/Nm3","Monthly mean of half-hourly averages","Highest half- hourly average","Monthly mean of  daily averages","Highest daily average"]
[null,null,null,null,null,null,null,null,null,"A3","Jan",0.8,21.4,0.8,3.3]
[null,null,null,null,null,null,null,null,null,null,"Feb",1.2,52.5,1.2,3.8]
[null,null,null,null,null,null,null,null,null,null,"Mar",1.9,34.200000000000003,1.9,6.5]
[null,null,null,null,null,null,null,null,null,null,"Apr",0.8,22.2,0.8,2.8]
[null,null,null,null,null,null,null,null,null,null,"May",0.8,15.8,0.8,1.8]
[null,null,null,null,null,null,null,null,null,null,"Jun",2.1,73.099999999999994,2.1,9.6999999999999993]
[null,null,null,null,null,null,null,null,null,null,"Jul",3.8,83.3,3.7,8.1]
[null,null,null,null,null,null,null,null,null,null,"Aug",2.4,73.8,2.4,6.8]
[null,null,null,null,null,null,null,null,null,null,"Sep",2.9,74.8,2.9,10.4]
[null,null,null,null,null,null,null,null,null,null,"Oct",2.6,74.5,2.6,7.4]
[null,null,null,null,null,null,null,null,null,null,"Nov",1.4,75.5,1.4,4]
["Comments :",null,null,null,null,null,null,null,null,null,"Dec",1.1000000000000001,32.6,1,2.8]
["Line 2 had 1 daily average exceedance in 2025. There was insufficient effective operating time for the daily average ELV to be applicable.\n\nLine 3 had 2 daily average exceedances in 2025. There was insufficient effective operating time for the daily average ELV to be applicable.",null,null,null,null,null,null,null,null,null,"Annual",{"$f":"AVERAGE(L37:L48)","v":1.8166666666666667},{"$f":"MAX(M37:M48)","v":83.3},{"$f":"AVERAGE(N37:N48)","v":1.8},{"$f":"MAX(O37:O48)","v":10.4}]
[]
[null,null,null,null,null,null,null,null,null,{"$f":"+A5","v":2025},"mg/Nm3","Monthly mean of half-hourly averages","Highest half- hourly average","Monthly mean of  daily averages","Highest daily average"]
[null,null,null,null,null,null,null,null,null,"A4","Jan"]
[null,null,null,null,null,null,null,null,null,null,"Feb"]
[null,null,null,null,null,null,null,null,null,null,"Mar"]
[null,null,null,null,null,null,null,null,null,null,"Apr"]
[null,null,null,null,null,null,null,null,null,null,"May"]
[null,null,null,null,null,null,null,null,null,null,"Jun"]
[null,null,null,null,null,null,null,null,null,null,"Jul"]
[null,null,null,null,null,null,null,null,null,null,"Aug"]
[null,null,null,null,null,null,null,null,null,null,"Sep"]
[null,null,null,null,null,null,null,null,null,null,"Oct"]
[null,null,null,null,null,null,null,null,null,null,"Nov"]
[null,null,null,null,null,null,null,null,null,null,"Dec"]
[null,null,null,null,null,null,null,null,null,null,"Annual",{"$f":"AVERAGE(L52:L63)","v":{"$error":"#DIV/0!"}},{"$f":"MAX(M52:M63)","v":0},{"$f":"AVERAGE(N52:N63)","v":{"$error":"#DIV/0!"}},{"$f":"MAX(O52:O63)","v":0}]
[]
[null,null,null,null,null,null,null,null,null,{"$f":"+A5","v":2025},"mg/Nm3","Monthly mean of half-hourly averages","Highest half- hourly average","Monthly mean of  daily averages","Highest daily average"]
[null,null,null,null,null,null,null,null,null,"A5","Jan"]
[null,null,null,null,null,null,null,null,null,null,"Feb"]
[null,null,null,null,null,null,null,null,null,null,"Mar"]
[null,null,null,null,null,null,null,null,null,null,"Apr"]
[null,null,null,null,null,null,null,null,null,null,"May"]
[null,null,null,null,null,null,null,null,null,null,"Jun"]
[null,null,null,null,null,null,null,null,null,null,"Jul"]
[null,null,null,null,null,null,null,null,null,null,"Aug"]
[null,null,null,null,null,null,null,null,null,null,"Sep"]
[null,null,null,null,null,null,null,null,null,null,"Oct"]
[null,null,null,null,null,null,null,null,null,null,"Nov"]
[null,null,null,null,null,null,null,null,null,null,"Dec"]
[null,null,null,null,null,null,null,null,null,null,"Annual",{"$f":"AVERAGE(L67:L78)","v":{"$error":"#DIV/0!"}},{"$f":"MAX(M67:M78)","v":0},{"$f":"AVERAGE(N67:N78)","v":{"$error":"#DIV/0!"}},{"$f":"MAX(O67:O78)","v":0}]

{"sheet":"NOx","index":18,"n_rows":79,"n_cols":17,"rows_kept":79,"cut":false,"hidden":false,"merged":[[3,16,7,18],[9,16,11,18],[12,16,15,18],[66,9,78,9],[4,1,4,3],[4,4,4,6],[4,9,4,14],[6,9,18,9],[21,9,33,9],[36,9,48,9],[47,0,47,6],[48,0,51,6],[51,9,63,9],[18,4,18,6],[17,16,17,18],[18,16,19,18]]}
[{"$f":"+'Cover Page'!$B$29","v":"Annual Performance Report 2025"},null,null,null,{"$f":"+'Cover Page'!$B$33","v":"MVV Environment Baldovie Ltd"}]
[]
["Monitoring of Oxides of Nitrogen emissions",null,null,"Whole Installation",null,null,"See  Notes in Cell Q3",null,null,{"$f":"+A3","v":"Monitoring of Oxides of Nitrogen emissions"},null,null,null,"Per Combustion Line",null,null,"Notes:"]
[null,null,null,null,null,null,null,null,null,null,null,null,null,null,null,null,"User to add logic to complete Whole installation, Table A5:G18. From the data in Per Combustion Line, Table J6:O79, subject to No. of lines installed"]
[{"$f":"+'Cover Page'!C39","v":2025},"1/2 Hourly Reference Periods",null,null,"Daily Reference Periods"]
["mg/Nm3","1/2 hourly NOx ELV","Monthly mean of half-hourly averages","Highest half- hourly average","Daily NOx ELV","Monthly mean of  daily averages","Highest daily average",null,null,{"$f":"+A5","v":2025},"mg/Nm3","Monthly mean of half-hourly averages","Highest half- hourly average","Monthly mean of  daily averages","Highest daily average"]
["Jan",400,{"$f":"AVERAGE(L7,L22,M37)","v":180.33333333333334},{"$f":"MAX(M7,M22,M37)","v":270.5},180,{"$f":"AVERAGE(N7,N22,N37)","v":169.73333333333332},{"$f":"MAX(O7,O22,O37)","v":182.1},null,null,"A1","Jan",172.2,270.5,171.6,182.1]
["Feb",400,{"$f":"AVERAGE(L8,L23,M38)","v":182.46666666666667},{"$f":"MAX(M8,M23,M38)","v":234.2},180,{"$f":"AVERAGE(N8,N23,N38)","v":169.83333333333334},{"$f":"MAX(O8,O23,O38)","v":177.6},null,null,null,"Feb",172.3,234.2,172.4,177.6]
["Mar",400,184.23333333333335,{"$f":"MAX(M9,M24,M39)","v":258.8},180,169.56666666666669,172.8,null,null,null,"Mar",171.8,258.8,171.5,172.8,null,"Whole Installation table A5:G18:"]
["Apr",400,183.30000000000004,262.5,180,168.83333333333334,179.2,null,null,null,"Apr",172.4,252,172.4,179.2,null,"Mean: for 1/2 hourly and daily periods calculate mean of values across all operational combustion lines for the month"]
["May",400,180.6,230.2,180,168.86666666666667,{"$f":"MAX(O11,O26,O41)","v":174.4},null,null,null,"May",171,230.2,170.8,174.4]
["Jun",400,178,280.2,180,168.36666666666665,179.6,null,null,null,"Jun",172.7,231.4,172.5,177.2]
["Jul",400,185.20000000000002,224,180,168.3,173.1,null,null,null,"Jul",169.7,208.5,169.4,172.3,null,"Maximum: for 1/2 hourly and daily periods use the highest value across all operational combustion lines for the month"]
["Aug",400,188.70000000000002,222,180,170.70000000000002,173.5,null,null,null,"Aug",172.1,186.7,171.6,173.5]
["Sep",400,179.43333333333331,263.7,180,170.4,174.9,null,null,null,"Sep",172,220.4,171.9,173.7]
["Oct",400,181.56666666666669,302.5,180,171.1,191.7,null,null,null,"Oct",171.3,240,172.3,191.7]
["Nov",400,185.76666666666665,256.89999999999998,180,169.26666666666668,178.1,null,null,null,"Nov",166.2,208.5,166,168.8]
["Dec",400,176.26666666666665,292.8,180,167.46666666666667,172.1,null,null,null,"Dec",167.4,292.8,167.3,172,null,"*Value of Daily ELV:"]
[null,null,null,null,null,null,null,null,null,null,"Annual",{"$f":"AVERAGE(L7:L18)","v":170.92499999999998},{"$f":"MAX(M7:M18)","v":292.8},{"$f":"AVERAGE(N7:N18)","v":170.80833333333337},{"$f":"MAX(O7:O18)","v":191.7},null,"ELV should be corrected as necessary to match ELV in Table 6.2"]
[]
[null,null,null,null,null,null,null,null,null,{"$f":"+A5","v":2025},"mg/Nm3","Monthly mean of half-hourly averages","Highest half- hourly average","Monthly mean of  daily averages","Highest daily average"]
[null,null,null,null,null,null,null,null,null,"A2","Jan",172,194.7,172.1,175.4]
[null,null,null,null,null,null,null,null,null,null,"Feb",172,213.6,172,173.6]
[null,null,null,null,null,null,null,null,null,null,"Mar",171,189.3,170.3,172.2]
[null,null,null,null,null,null,null,null,null,null,"Apr",171.2,262.5,170.5,172.8]
[null,null,null,null,null,null,null,null,null,null,"May",171.6,203.3,170.9,173.6]
[null,null,null,null,null,null,null,null,null,null,"Jun",170.2,280.2,170.4,179.6]
[null,null,null,null,null,null,null,null,null,null,"Jul",171.8,224,171.7,173.1]
[null,null,null,null,null,null,null,null,null,null,"Aug",172,211.4,171.9,173.4]
[null,null,null,null,null,null,null,null,null,null,"Sep",172.2,263.7,172.3,174.9]
[null,null,null,null,null,null,null,null,null,null,"Oct",170.5,302.5,171.8,177.8]
[null,null,null,null,null,null,null,null,null,null,"Nov",171,256.89999999999998,171,178.1]
[null,null,null,null,null,null,null,null,null,null,"Dec",168.2,206.5,164.1,170.6]
[null,null,null,null,null,null,null,null,null,null,"Annual",{"$f":"AVERAGE(L22:L33)","v":171.14166666666665},{"$f":"MAX(M22:M33)","v":302.5},{"$f":"AVERAGE(N22:N33)","v":170.75},{"$f":"MAX(O22:O33)","v":179.6}]
[]
[null,null,null,null,null,null,null,null,null,{"$f":"+A5","v":2025},"mg/Nm3","Monthly mean of half-hourly averages","Highest half- hourly average","Monthly mean of  daily averages","Highest daily average"]
[null,null,null,null,null,null,null,null,null,"A3","Jan",165.5,196.8,165.5,172.3]
[null,null,null,null,null,null,null,null,null,null,"Feb",165.1,203.1,165.1,168.9]
[null,null,null,null,null,null,null,null,null,null,"Mar",166.9,209.9,166.9,171.9]
[null,null,null,null,null,null,null,null,null,null,"Apr",164.2,206.3,163.6,170.2]
[null,null,null,null,null,null,null,null,null,null,"May",164.9,199.2,164.9,169.5]
[null,null,null,null,null,null,null,null,null,null,"Jun",161.9,191.1,162.19999999999999,168.3]
[null,null,null,null,null,null,null,null,null,null,"Jul",163.80000000000001,214.1,163.80000000000001,170.7]
[null,null,null,null,null,null,null,null,null,null,"Aug",168.7,222,168.6,171.7]
[null,null,null,null,null,null,null,null,null,null,"Sep",167,194.1,167,172.4]
[null,null,null,null,null,null,null,null,null,null,"Oct",169.3,202.9,169.2,172.7]
[null,null,null,null,null,null,null,null,null,null,"Nov",170.9,220.1,170.8,172.4]
["Comments :",null,null,null,null,null,null,null,null,null,"Dec",171.1,193.2,171,172.1]
["Line 1 had 2 daily average exceedances in 2025. There was insufficient effective operating time for the daily average ELV to be applicable.",null,null,null,null,null,null,null,null,null,"Annual",{"$f":"AVERAGE(L37:L48)","v":166.60833333333332},{"$f":"MAX(M37:M48)","v":222},{"$f":"AVERAGE(N37:N48)","v":166.54999999999998},{"$f":"MAX(O37:O48)","v":172.7}]
[]
[null,null,null,null,null,null,null,null,null,{"$f":"+A5","v":2025},"mg/Nm3","Monthly mean of half-hourly averages","Highest half- hourly average","Monthly mean of  daily averages","Highest daily average"]
[null,null,null,null,null,null,null,null,null,"A4","Jan"]
[null,null,null,null,null,null,null,null,null,null,"Feb"]
[null,null,null,null,null,null,null,null,null,null,"Mar"]
[null,null,null,null,null,null,null,null,null,null,"Apr"]
[null,null,null,null,null,null,null,null,null,null,"May"]
[null,null,null,null,null,null,null,null,null,null,"Jun"]
[null,null,null,null,null,null,null,null,null,null,"Jul"]
[null,null,null,null,null,null,null,null,null,null,"Aug"]
[null,null,null,null,null,null,null,null,null,null,"Sep"]
[null,null,null,null,null,null,null,null,null,null,"Oct"]
[null,null,null,null,null,null,null,null,null,null,"Nov"]
[null,null,null,null,null,null,null,null,null,null,"Dec"]
[null,null,null,null,null,null,null,null,null,null,"Annual",{"$f":"AVERAGE(L52:L63)","v":{"$error":"#DIV/0!"}},{"$f":"MAX(M52:M63)","v":0},{"$f":"AVERAGE(N52:N63)","v":{"$error":"#DIV/0!"}},{"$f":"MAX(O52:O63)","v":0}]
[]
[null,null,null,null,null,null,null,null,null,{"$f":"+A5","v":2025},"mg/Nm3","Monthly mean of half-hourly averages","Highest half- hourly average","Monthly mean of  daily averages","Highest daily average"]
[null,null,null,null,null,null,null,null,null,"A5","Jan"]
[null,null,null,null,null,null,null,null,null,null,"Feb"]
[null,null,null,null,null,null,null,null,null,null,"Mar"]
[null,null,null,null,null,null,null,null,null,null,"Apr"]
[null,null,null,null,null,null,null,null,null,null,"May"]
[null,null,null,null,null,null,null,null,null,null,"Jun"]
[null,null,null,null,null,null,null,null,null,null,"Jul"]
[null,null,null,null,null,null,null,null,null,null,"Aug"]
[null,null,null,null,null,null,null,null,null,null,"Sep"]
[null,null,null,null,null,null,null,null,null,null,"Oct"]
[null,null,null,null,null,null,null,null,null,null,"Nov"]
[null,null,null,null,null,null,null,null,null,null,"Dec"]
[null,null,null,null,null,null,null,null,null,null,"Annual",{"$f":"AVERAGE(L67:L78)","v":{"$error":"#DIV/0!"}},{"$f":"MAX(M67:M78)","v":0},{"$f":"AVERAGE(N67:N78)","v":{"$error":"#DIV/0!"}},{"$f":"MAX(O67:O78)","v":0}]

{"sheet":"TOC","index":19,"n_rows":79,"n_cols":17,"rows_kept":79,"cut":false,"hidden":false,"merged":[[3,16,7,18],[9,16,11,18],[12,16,15,18],[66,9,78,9],[4,1,4,3],[4,4,4,6],[4,9,4,14],[6,9,18,9],[21,9,33,9],[36,9,48,9],[47,0,47,6],[48,0,51,6],[51,9,63,9],[17,16,17,18],[18,16,19,18]]}
[{"$f":"+'Cover Page'!$B$29","v":"Annual Performance Report 2025"},null,null,null,{"$f":"+'Cover Page'!$B$33","v":"MVV Environment Baldovie Ltd"}]
[]
["Monitoring of Total organic carbon emissions",null,null,"Whole Installation",null,null,"See  Notes in Cell Q3",null,null,{"$f":"+A3","v":"Monitoring of Total organic carbon emissions"},null,null,null,"Per Combustion Line",null,null,"Notes:"]
[null,null,null,null,null,null,null,null,null,null,null,null,null,null,null,null,"User to add logic to complete Whole installation, Table A5:G18. From the data in Per Combustion Line, Table J6:O79, subject to No. of lines installed"]
[{"$f":"+'Cover Page'!C39","v":2025},"1/2 Hourly Reference Periods",null,null,"Daily Reference Periods"]
["mg/Nm3","1/2 hourly TOC ELV","Monthly mean of half-hourly averages","Highest half- hourly average","Daily TOC ELV","Monthly mean of  daily averages","Highest daily average",null,null,{"$f":"+A5","v":2025},"mg/Nm3","Monthly mean of half-hourly averages","Highest half- hourly average","Monthly mean of  daily averages","Highest daily average"]
["Jan",20,{"$f":"AVERAGE(L7,L22,M37)","v":57.233333333333327},{"$f":"MAX(M7,M22,M37)","v":170.6},10,{"$f":"AVERAGE(N7,N22,N37)","v":0.53333333333333333},{"$f":"MAX(O7,O22,O37)","v":3.6},null,null,"A1","Jan",0.3,14.5,0.3,0.9]
["Feb",20,{"$f":"AVERAGE(L8,L23,M38)","v":5.5},{"$f":"MAX(M8,M23,M38)","v":27.6},10,{"$f":"AVERAGE(N8,N23,N38)","v":0.43333333333333335},{"$f":"MAX(O8,O23,O38)","v":2.1},null,null,null,"Feb",0.6,27.6,0.6,2.1]
["Mar",20,1.4666666666666668,{"$f":"MAX(M9,M24,M39)","v":94.1},10,0.53333333333333333,{"$f":"MAX(O9,O24,O39)","v":3.5},null,null,null,"Mar",0.7,94.1,0.8,3.5,null,"Whole Installation table A5:G18:"]
["Apr",20,3.1333333333333329,58.4,10,0.53333333333333333,3.4,null,null,null,"Apr",0.6,58.4,0.7,3.4,null,"Mean: for 1/2 hourly and daily periods calculate mean of values across all operational combustion lines for the month"]
["May",20,5.2333333333333334,23.9,10,0.53333333333333333,{"$f":"MAX(O11,O26,O41)","v":2.6},null,null,null,"May",0.8,23.9,0.7,2.1]
["Jun",20,139.73333333333332,417.5,10,0.73333333333333328,2.6,null,null,null,"Jun",1.1000000000000001,43.6,1.2,2.6]
["Jul",20,23.099999999999998,66.8,10,1.3333333333333333,25.3,null,null,null,"Jul",1.8,40.6,2.9,25.3,null,"Maximum: for 1/2 hourly and daily periods use the highest value across all operational combustion lines for the month"]
["Aug",20,4.7,12,10,0.79999999999999993,3.3,null,null,null,"Aug",1.4,9.1,1.5,3.3]
["Sep",20,5.7666666666666657,60,10,1.3666666666666669,7.8,null,null,null,"Sep",2.8,60,2.7,5.4]
["Oct",20,10,56.9,10,0.96666666666666667,4.9000000000000004,null,null,null,"Oct",1.7,56.9,1.8,4.9000000000000004]
["Nov",20,2.0666666666666664,43.5,10,0.96666666666666667,9.8000000000000007,null,null,null,"Nov",1.5,43.5,1.7,9.8000000000000007]
["Dec",20,2.6666666666666665,42.9,10,0.76666666666666661,2.5,null,null,null,"Dec",1.2,42.9,1.2,2.5,null,"*Value of Daily ELV:"]
[null,null,null,null,null,null,null,null,null,null,"Annual",{"$f":"AVERAGE(L7:L18)","v":1.208333333333333},{"$f":"MAX(M7:M18)","v":94.1},{"$f":"AVERAGE(N7:N18)","v":1.3416666666666666},{"$f":"MAX(O7:O18)","v":25.3},null,"ELV should be corrected as necessary to match ELV in Table 6.2"]
[]
[null,null,null,null,null,null,null,null,null,{"$f":"+A5","v":2025},"mg/Nm3","Monthly mean of half-hourly averages","Highest half- hourly average","Monthly mean of  daily averages","Highest daily average"]
[null,null,null,null,null,null,null,null,null,"A2","Jan",0.8,5.9,0.8,1.3]
[null,null,null,null,null,null,null,null,null,null,"Feb",0.5,5.8,0.4,0.7]
[null,null,null,null,null,null,null,null,null,null,"Mar",0.7,22.5,0.6,1.4]
[null,null,null,null,null,null,null,null,null,null,"Apr",0.6,2.8,0.5,0.8]
[null,null,null,null,null,null,null,null,null,null,"May",0.5,5.2,0.6,2.6]
[null,null,null,null,null,null,null,null,null,null,"Jun",0.6,3.1,0.6,0.9]
[null,null,null,null,null,null,null,null,null,null,"Jul",0.7,38.299999999999997,0.7,1.8]
[null,null,null,null,null,null,null,null,null,null,"Aug",0.7,6.8,0.6,0.8]
[null,null,null,null,null,null,null,null,null,null,"Sep",0.8,22.2,1.1000000000000001,7.8]
[null,null,null,null,null,null,null,null,null,null,"Oct",0.8,3.6,0.7,0.9]
[null,null,null,null,null,null,null,null,null,null,"Nov",0.9,11.8,0.9,1.2]
[null,null,null,null,null,null,null,null,null,null,"Dec",0.9,2.5,0.8,1.1000000000000001]
[null,null,null,null,null,null,null,null,null,null,"Annual",{"$f":"AVERAGE(L22:L33)","v":0.70833333333333337},{"$f":"MAX(M22:M33)","v":38.299999999999997},{"$f":"AVERAGE(N22:N33)","v":0.69166666666666676},{"$f":"MAX(O22:O33)","v":7.8}]
[]
[null,null,null,null,null,null,null,null,null,{"$f":"+A5","v":2025},"mg/Nm3","Monthly mean of half-hourly averages","Highest half- hourly average","Monthly mean of  daily averages","Highest daily average"]
[null,null,null,null,null,null,null,null,null,"A3","Jan",0.5,170.6,0.5,3.6]
[null,null,null,null,null,null,null,null,null,null,"Feb",0.3,15.4,0.3,0.7]
[null,null,null,null,null,null,null,null,null,null,"Mar",0.2,3,0.2,0.5]
[null,null,null,null,null,null,null,null,null,null,"Apr",0.4,8.1999999999999993,0.4,0.6]
[null,null,null,null,null,null,null,null,null,null,"May",0.4,14.4,0.3,0.6]
[null,null,null,null,null,null,null,null,null,null,"Jun",1.4,417.5,0.4,0.8]
[null,null,null,null,null,null,null,null,null,null,"Jul",0.5,66.8,0.4,1.8]
[null,null,null,null,null,null,null,null,null,null,"Aug",0.3,12,0.3,0.6]
[null,null,null,null,null,null,null,null,null,null,"Sep",0.3,13.7,0.3,0.6]
[null,null,null,null,null,null,null,null,null,null,"Oct",0.4,27.5,0.4,0.9]
[null,null,null,null,null,null,null,null,null,null,"Nov",0.3,3.8,0.3,0.5]
["Comments :",null,null,null,null,null,null,null,null,null,"Dec",0.3,5.9,0.3,0.4]
["Line 1 had 1 daily average exceedance in 2025. There was insufficient effective operating time for the daily average ELV to be applicable.\n\nLine 3 had 2 daily average exceedances in 2025. There was insufficient effective operating time for the daily average ELV to be applicable.\n",null,null,null,null,null,null,null,null,null,"Annual",{"$f":"AVERAGE(L37:L48)","v":0.44166666666666665},{"$f":"MAX(M37:M48)","v":417.5},{"$f":"AVERAGE(N37:N48)","v":0.34166666666666662},{"$f":"MAX(O37:O48)","v":3.6}]
[]
[null,null,null,null,null,null,null,null,null,{"$f":"+A5","v":2025},"mg/Nm3","Monthly mean of half-hourly averages","Highest half- hourly average","Monthly mean of  daily averages","Highest daily average"]
[null,null,null,null,null,null,null,null,null,"A4","Jan"]
[null,null,null,null,null,null,null,null,null,null,"Feb"]
[null,null,null,null,null,null,null,null,null,null,"Mar"]
[null,null,null,null,null,null,null,null,null,null,"Apr"]
[null,null,null,null,null,null,null,null,null,null,"May"]
[null,null,null,null,null,null,null,null,null,null,"Jun"]
[null,null,null,null,null,null,null,null,null,null,"Jul"]
[null,null,null,null,null,null,null,null,null,null,"Aug"]
[null,null,null,null,null,null,null,null,null,null,"Sep"]
[null,null,null,null,null,null,null,null,null,null,"Oct"]
[null,null,null,null,null,null,null,null,null,null,"Nov"]
[null,null,null,null,null,null,null,null,null,null,"Dec"]
[null,null,null,null,null,null,null,null,null,null,"Annual",{"$f":"AVERAGE(L52:L63)","v":{"$error":"#DIV/0!"}},{"$f":"MAX(M52:M63)","v":0},{"$f":"AVERAGE(N52:N63)","v":{"$error":"#DIV/0!"}},{"$f":"MAX(O52:O63)","v":0}]
[]
[null,null,null,null,null,null,null,null,null,{"$f":"+A5","v":2025},"mg/Nm3","Monthly mean of half-hourly averages","Highest half- hourly average","Monthly mean of  daily averages","Highest daily average"]
[null,null,null,null,null,null,null,null,null,"A5","Jan"]
[null,null,null,null,null,null,null,null,null,null,"Feb"]
[null,null,null,null,null,null,null,null,null,null,"Mar"]
[null,null,null,null,null,null,null,null,null,null,"Apr"]
[null,null,null,null,null,null,null,null,null,null,"May"]
[null,null,null,null,null,null,null,null,null,null,"Jun"]
[null,null,null,null,null,null,null,null,null,null,"Jul"]
[null,null,null,null,null,null,null,null,null,null,"Aug"]
[null,null,null,null,null,null,null,null,null,null,"Sep"]
[null,null,null,null,null,null,null,null,null,null,"Oct"]
[null,null,null,null,null,null,null,null,null,null,"Nov"]
[null,null,null,null,null,null,null,null,null,null,"Dec"]
[null,null,null,null,null,null,null,null,null,null,"Annual",{"$f":"AVERAGE(L67:L78)","v":{"$error":"#DIV/0!"}},{"$f":"MAX(M67:M78)","v":0},{"$f":"AVERAGE(N67:N78)","v":{"$error":"#DIV/0!"}},{"$f":"MAX(O67:O78)","v":0}]

{"sheet":"Particulates","index":20,"n_rows":79,"n_cols":17,"rows_kept":79,"cut":false,"hidden":false,"merged":[[4,16,8,18],[10,16,12,18],[13,16,16,18],[66,9,78,9],[4,1,4,3],[4,4,4,6],[4,9,4,14],[6,9,18,9],[21,9,33,9],[36,9,48,9],[47,0,47,6],[48,0,51,6],[51,9,63,9],[18,4,18,6],[18,16,18,18],[19,16,20,18]]}
[{"$f":"+'Cover Page'!$B$29","v":"Annual Performance Report 2025"},null,null,null,{"$f":"+'Cover Page'!$B$33","v":"MVV Environment Baldovie Ltd"}]
[]
["Monitoring of Particulate matter emissions",null,null,"Whole Installation",null,null,"See  Notes in Cell Q3",null,null,{"$f":"+A3","v":"Monitoring of Particulate matter emissions"},null,null,null,"Per Combustion Line",null,null,"Notes:"]
[]
[{"$f":"+'Cover Page'!C39","v":2025},"1/2 Hourly Reference Periods",null,null,"Daily Reference Periods",null,null,null,null,null,null,null,null,null,null,null,"User to add logic to complete Whole installation, Table A5:G18. From the data in Per Combustion Line, Table J6:O79, subject to No. of lines installed"]
["mg/Nm3","1/2 hourly PM ELV","Monthly mean of half-hourly averages","Highest half- hourly average","Daily PM ELV","Monthly mean of  daily averages","Highest daily average",null,null,{"$f":"+A5","v":2025},"mg/Nm3","Monthly mean of half-hourly averages","Highest half- hourly average","Monthly mean of  daily averages","Highest daily average"]
["Jan",30,{"$f":"AVERAGE(L7,L22,M37)","v":1.5666666666666664},{"$f":"MAX(M7,M22,M37)","v":3.3},5,{"$f":"AVERAGE(N7,N22,N37)","v":0.6333333333333333},{"$f":"MAX(O7,O22,O37)","v":2.2000000000000002},null,null,"A1","Jan",0.7,2.2000000000000002,0.7,1]
["Feb",30,{"$f":"AVERAGE(L8,L23,M38)","v":1.5666666666666667},{"$f":"MAX(M8,M23,M38)","v":8.9},5,{"$f":"AVERAGE(N8,N23,N38)","v":0.6},{"$f":"MAX(O8,O23,O38)","v":3.1},null,null,null,"Feb",0.4,1.4,0.4,0.6]
["Mar",30,1.5,{"$f":"MAX(M9,M24,M39)","v":23.9},5,0.6,5.2,null,null,null,"Mar",0.3,0.5,0.3,0.5]
["Apr",30,2.1999999999999997,11.4,5,0.43333333333333335,2.7,null,null,null,"Apr",0.3,6.8,0.3,0.6,null,"Whole Installation table A5:G18:"]
["May",30,2.1333333333333333,5.5,5,0.6,{"$f":"MAX(O11,O26,O41)","v":2.9},null,null,null,"May",0.3,1.5,0.3,0.4,null,"Mean: for 1/2 hourly and daily periods calculate mean of values across all operational combustion lines for the month"]
["Jun",30,2.9666666666666668,8.1,5,0.66666666666666663,3.3,null,null,null,"Jun",0.2,0.5,0.1,0.3]
["Jul",30,0.8666666666666667,3,5,0.33333333333333331,1.5,null,null,null,"Jul",0.2,1,0.1,0.3]
["Aug",30,0.5,2.4,5,0.3,1.3,null,null,null,"Aug",0.2,0.6,0.1,0.2,null,"Maximum: for 1/2 hourly and daily periods use the highest value across all operational combustion lines for the month"]
["Sep",30,0.73333333333333328,3.7,5,0.53333333333333333,1.9,null,null,null,"Sep",0.2,0.4,0.2,0.3]
["Oct",30,1.5999999999999999,6.9,5,0.6,2.2999999999999998,null,null,null,"Oct",0.1,0.3,0.1,0.2]
["Nov",30,0.76666666666666672,7.1,5,0.66666666666666663,2.4,null,null,null,"Nov",0.1,0.3,0.1,0.2]
["Dec",30,0.83333333333333337,5.7,5,0.73333333333333339,2.7,null,null,null,"Dec",0.1,0.3,0.1,0.2]
[null,null,null,null,null,null,null,null,null,null,"Annual",{"$f":"AVERAGE(L7:L18)","v":0.25833333333333341},{"$f":"MAX(M7:M18)","v":6.8},{"$f":"AVERAGE(N7:N18)","v":0.23333333333333339},{"$f":"MAX(O7:O18)","v":1},null,"*Value of Daily ELV:"]
[null,null,null,null,null,null,null,null,null,null,null,null,null,null,null,null,"ELV should be corrected as necessary to match ELV in Table 6.2"]
[null,null,null,null,null,null,null,null,null,{"$f":"+A5","v":2025},"mg/Nm3","Monthly mean of half-hourly averages","Highest half- hourly average","Monthly mean of  daily averages","Highest daily average"]
[null,null,null,null,null,null,null,null,null,"A2","Jan",0.7,3.3,0.7,2.2000000000000002]
[null,null,null,null,null,null,null,null,null,null,"Feb",1.1000000000000001,8.9,1,3.1]
[null,null,null,null,null,null,null,null,null,null,"Mar",0.8,23.9,1,5.2]
[null,null,null,null,null,null,null,null,null,null,"Apr",0.5,11.4,0.5,1.4]
[null,null,null,null,null,null,null,null,null,null,"May",0.6,2.8,0.6,0.9]
[null,null,null,null,null,null,null,null,null,null,"Jun",0.6,1.6,0.6,1.2]
[null,null,null,null,null,null,null,null,null,null,"Jul",0.8,3,0.8,1.5]
[null,null,null,null,null,null,null,null,null,null,"Aug",0.9,2.4,0.8,1.3]
[null,null,null,null,null,null,null,null,null,null,"Sep",1.4,3.7,1.4,1.9]
[null,null,null,null,null,null,null,null,null,null,"Oct",1.7,6.9,1.7,2.2999999999999998]
[null,null,null,null,null,null,null,null,null,null,"Nov",1.8,7.1,1.8,2.4]
[null,null,null,null,null,null,null,null,null,null,"Dec",2.1,5.7,2,2.7]
[null,null,null,null,null,null,null,null,null,null,"Annual",{"$f":"AVERAGE(L22:L33)","v":1.0833333333333333},{"$f":"MAX(M22:M33)","v":23.9},{"$f":"AVERAGE(N22:N33)","v":1.075},{"$f":"MAX(O22:O33)","v":5.2}]
[]
[null,null,null,null,null,null,null,null,null,{"$f":"+A5","v":2025},"mg/Nm3","Monthly mean of half-hourly averages","Highest half- hourly average","Monthly mean of  daily averages","Highest daily average"]
[null,null,null,null,null,null,null,null,null,"A3","Jan",0.5,3.3,0.5,0.8]
[null,null,null,null,null,null,null,null,null,null,"Feb",0.5,3.2,0.4,0.8]
[null,null,null,null,null,null,null,null,null,null,"Mar",0.5,3.4,0.5,1.1000000000000001]
[null,null,null,null,null,null,null,null,null,null,"Apr",0.5,5.8,0.5,2.7]
[null,null,null,null,null,null,null,null,null,null,"May",1,5.5,0.9,2.9]
[null,null,null,null,null,null,null,null,null,null,"Jun",1.3,8.1,1.3,3.3]
[null,null,null,null,null,null,null,null,null,null,"Jul",0.1,1.6,0.1,0.4]
[null,null,null,null,null,null,null,null,null,null,"Aug",0.1,0.4,0,0.1]
[null,null,null,null,null,null,null,null,null,null,"Sep",0.1,0.6,0,0.2]
[null,null,null,null,null,null,null,null,null,null,"Oct",0.1,3,0,0.2]
[null,null,null,null,null,null,null,null,null,null,"Nov",0.1,0.4,0.1,0.1]
["Comments :",null,null,null,null,null,null,null,null,null,"Dec",0.1,0.3,0.1,0.2]
["Line 2 had 1 daily average exceedance in 2025. There was insufficient effective operating time for the daily average ELV to be applicable.",null,null,null,null,null,null,null,null,null,"Annual",{"$f":"AVERAGE(L37:L48)","v":0.40833333333333316},{"$f":"MAX(M37:M48)","v":8.1},{"$f":"AVERAGE(N37:N48)","v":0.36666666666666653},{"$f":"MAX(O37:O48)","v":3.3}]
[]
[null,null,null,null,null,null,null,null,null,{"$f":"+A5","v":2025},"mg/Nm3","Monthly mean of half-hourly averages","Highest half- hourly average","Monthly mean of  daily averages","Highest daily average"]
[null,null,null,null,null,null,null,null,null,"A4","Jan"]
[null,null,null,null,null,null,null,null,null,null,"Feb"]
[null,null,null,null,null,null,null,null,null,null,"Mar"]
[null,null,null,null,null,null,null,null,null,null,"Apr"]
[null,null,null,null,null,null,null,null,null,null,"May"]
[null,null,null,null,null,null,null,null,null,null,"Jun"]
[null,null,null,null,null,null,null,null,null,null,"Jul"]
[null,null,null,null,null,null,null,null,null,null,"Aug"]
[null,null,null,null,null,null,null,null,null,null,"Sep"]
[null,null,null,null,null,null,null,null,null,null,"Oct"]
[null,null,null,null,null,null,null,null,null,null,"Nov"]
[null,null,null,null,null,null,null,null,null,null,"Dec"]
[null,null,null,null,null,null,null,null,null,null,"Annual",{"$f":"AVERAGE(L52:L63)","v":{"$error":"#DIV/0!"}},{"$f":"MAX(M52:M63)","v":0},{"$f":"AVERAGE(N52:N63)","v":{"$error":"#DIV/0!"}},{"$f":"MAX(O52:O63)","v":0}]
[]
[null,null,null,null,null,null,null,null,null,{"$f":"+A5","v":2025},"mg/Nm3","Monthly mean of half-hourly averages","Highest half- hourly average","Monthly mean of  daily averages","Highest daily average"]
[null,null,null,null,null,null,null,null,null,"A5","Jan"]
[null,null,null,null,null,null,null,null,null,null,"Feb"]
[null,null,null,null,null,null,null,null,null,null,"Mar"]
[null,null,null,null,null,null,null,null,null,null,"Apr"]
[null,null,null,null,null,null,null,null,null,null,"May"]
[null,null,null,null,null,null,null,null,null,null,"Jun"]
[null,null,null,null,null,null,null,null,null,null,"Jul"]
[null,null,null,null,null,null,null,null,null,null,"Aug"]
[null,null,null,null,null,null,null,null,null,null,"Sep"]
[null,null,null,null,null,null,null,null,null,null,"Oct"]
[null,null,null,null,null,null,null,null,null,null,"Nov"]
[null,null,null,null,null,null,null,null,null,null,"Dec"]
[null,null,null,null,null,null,null,null,null,null,"Annual",{"$f":"AVERAGE(L67:L78)","v":{"$error":"#DIV/0!"}},{"$f":"MAX(M67:M78)","v":0},{"$f":"AVERAGE(N67:N78)","v":{"$error":"#DIV/0!"}},{"$f":"MAX(O67:O78)","v":0}]

{"sheet":"CO 0.5 hourly","index":21,"n_rows":82,"n_cols":17,"rows_kept":82,"cut":false,"hidden":false,"merged":[[4,0,5,6],[6,16,10,18],[12,16,14,18],[15,16,18,18],[69,9,81,9],[7,1,7,3],[7,4,7,6],[7,9,7,14],[9,9,21,9],[24,9,36,9],[39,9,51,9],[50,0,50,6],[51,0,54,6],[54,9,66,9],[20,16,20,18],[21,16,22,18]]}
[{"$f":"+'Cover Page'!$B$29","v":"Annual Performance Report 2025"},null,null,null,{"$f":"+'Cover Page'!$B$33","v":"MVV Environment Baldovie Ltd"}]
[]
["Monitoring of Carbon Monoxide (half hourly)",null,null,"Whole Installation",null,null,"See  Notes in Cell Q3",null,null,{"$f":"+A3","v":"Monitoring of Carbon Monoxide (half hourly)"},null,null,null,"Per Combustion Line",null,null,"Notes:"]
[]
["Please complete this tab for your plant if you have 1/2 hourly CO ELVs; otherwise, leave it blank and complete the CO 95% 10 min tab"]
[]
[null,null,null,null,null,null,null,null,null,null,null,null,null,null,null,null,"User to add logic to complete Whole installation, Table A5:G18. From the data in Per Combustion Line, Table J6:O79, subject to No. of lines installed"]
[{"$f":"+'Cover Page'!C39","v":2025},"1/2 Hourly Reference Periods",null,null,"Daily Reference Periods"]
["mg/Nm3","1/2 hourly CO ELV","Monthly mean of half-hourly averages","Highest half- hourly average","Daily CO ELV","Monthly mean of  daily averages","Highest daily average",null,null,{"$f":"+A8","v":2025},"mg/Nm3","Monthly mean of half-hourly averages","Highest half- hourly average","Monthly mean of  daily averages","Highest daily average"]
["Jan",100,null,null,50,null,null,null,null,"A1","Jan"]
["Feb",{"$f":"+B10","v":100},null,null,{"$f":"+E10","v":50},null,null,null,null,null,"Feb"]
["Mar",{"$f":"+B11","v":100},null,null,{"$f":"+E11","v":50},null,null,null,null,null,"Mar",null,null,null,null,null,"Whole Installation table A5:G18:"]
["Apr",100,null,null,50,null,null,null,null,null,"Apr",null,null,null,null,null,"Mean: for 1/2 hourly and daily periods calculate mean of values across all operational combustion lines for the month"]
["May",100,null,null,50,null,null,null,null,null,"May"]
["Jun",100,null,null,50,null,null,null,null,null,"Jun"]
["Jul",100,null,null,50,null,null,null,null,null,"Jul",null,null,null,null,null,"Maximum: for 1/2 hourly and daily periods use the highest value across all operational combustion lines for the month"]
["Aug",100,null,null,50,null,null,null,null,null,"Aug"]
["Sep",100,null,null,50,null,null,null,null,null,"Sep"]
["Oct",100,null,null,50,null,null,null,null,null,"Oct"]
["Nov",100,null,null,50,null,null,null,null,null,"Nov"]
["Dec",100,null,null,50,null,null,null,null,null,"Dec",null,null,null,null,null,"*Value of Daily ELV:"]
[null,null,null,null,null,null,null,null,null,null,"Annual",{"$f":"AVERAGE(L10:L21)","v":{"$error":"#DIV/0!"}},{"$f":"MAX(M10:M21)","v":0},{"$f":"AVERAGE(N10:N21)","v":{"$error":"#DIV/0!"}},{"$f":"MAX(O10:O21)","v":0},null,"ELV should be corrected as necessary to match ELV in Table 6.2"]
[]
[null,null,null,null,null,null,null,null,null,{"$f":"+A8","v":2025},"mg/Nm3","Monthly mean of half-hourly averages","Highest half- hourly average","Monthly mean of  daily averages","Highest daily average"]
[null,null,null,null,null,null,null,null,null,"A2","Jan"]
[null,null,null,null,null,null,null,null,null,null,"Feb"]
[null,null,null,null,null,null,null,null,null,null,"Mar"]
[null,null,null,null,null,null,null,null,null,null,"Apr"]
[null,null,null,null,null,null,null,null,null,null,"May"]
[null,null,null,null,null,null,null,null,null,null,"Jun"]
[null,null,null,null,null,null,null,null,null,null,"Jul"]
[null,null,null,null,null,null,null,null,null,null,"Aug"]
[null,null,null,null,null,null,null,null,null,null,"Sep"]
[null,null,null,null,null,null,null,null,null,null,"Oct"]
[null,null,null,null,null,null,null,null,null,null,"Nov"]
[null,null,null,null,null,null,null,null,null,null,"Dec"]
[null,null,null,null,null,null,null,null,null,null,"Annual",{"$f":"AVERAGE(L25:L36)","v":{"$error":"#DIV/0!"}},{"$f":"MAX(M25:M36)","v":0},{"$f":"AVERAGE(N25:N36)","v":{"$error":"#DIV/0!"}},{"$f":"MAX(O25:O36)","v":0}]
[]
[null,null,null,null,null,null,null,null,null,{"$f":"+A8","v":2025},"mg/Nm3","Monthly mean of half-hourly averages","Highest half- hourly average","Monthly mean of  daily averages","Highest daily average"]
[null,null,null,null,null,null,null,null,null,"A3","Jan"]
[null,null,null,null,null,null,null,null,null,null,"Feb"]
[null,null,null,null,null,null,null,null,null,null,"Mar"]
[null,null,null,null,null,null,null,null,null,null,"Apr"]
[null,null,null,null,null,null,null,null,null,null,"May"]
[null,null,null,null,null,null,null,null,null,null,"Jun"]
[null,null,null,null,null,null,null,null,null,null,"Jul"]
[null,null,null,null,null,null,null,null,null,null,"Aug"]
[null,null,null,null,null,null,null,null,null,null,"Sep"]
[null,null,null,null,null,null,null,null,null,null,"Oct"]
[null,null,null,null,null,null,null,null,null,null,"Nov"]
["Comments :",null,null,null,null,null,null,null,null,null,"Dec"]
[null,null,null,null,null,null,null,null,null,null,"Annual",{"$f":"AVERAGE(L40:L51)","v":{"$error":"#DIV/0!"}},{"$f":"MAX(M40:M51)","v":0},{"$f":"AVERAGE(N40:N51)","v":{"$error":"#DIV/0!"}},{"$f":"MAX(O40:O51)","v":0}]
[]
[null,null,null,null,null,null,null,null,null,{"$f":"+A8","v":2025},"mg/Nm3","Monthly mean of half-hourly averages","Highest half- hourly average","Monthly mean of  daily averages","Highest daily average"]
[null,null,null,null,null,null,null,null,null,"A4","Jan"]
[null,null,null,null,null,null,null,null,null,null,"Feb"]
[null,null,null,null,null,null,null,null,null,null,"Mar"]
[null,null,null,null,null,null,null,null,null,null,"Apr"]
[null,null,null,null,null,null,null,null,null,null,"May"]
[null,null,null,null,null,null,null,null,null,null,"Jun"]
[null,null,null,null,null,null,null,null,null,null,"Jul"]
[null,null,null,null,null,null,null,null,null,null,"Aug"]
[null,null,null,null,null,null,null,null,null,null,"Sep"]
[null,null,null,null,null,null,null,null,null,null,"Oct"]
[null,null,null,null,null,null,null,null,null,null,"Nov"]
[null,null,null,null,null,null,null,null,null,null,"Dec"]
[null,null,null,null,null,null,null,null,null,null,"Annual",{"$f":"AVERAGE(L55:L66)","v":{"$error":"#DIV/0!"}},{"$f":"MAX(M55:M66)","v":0},{"$f":"AVERAGE(N55:N66)","v":{"$error":"#DIV/0!"}},{"$f":"MAX(O55:O66)","v":0}]
[]
[null,null,null,null,null,null,null,null,null,{"$f":"+A8","v":2025},"mg/Nm3","Monthly mean of half-hourly averages","Highest half- hourly average","Monthly mean of  daily averages","Highest daily average"]
[null,null,null,null,null,null,null,null,null,"A5","Jan"]
[null,null,null,null,null,null,null,null,null,null,"Feb"]
[null,null,null,null,null,null,null,null,null,null,"Mar"]
[null,null,null,null,null,null,null,null,null,null,"Apr"]
[null,null,null,null,null,null,null,null,null,null,"May"]
[null,null,null,null,null,null,null,null,null,null,"Jun"]
[null,null,null,null,null,null,null,null,null,null,"Jul"]
[null,null,null,null,null,null,null,null,null,null,"Aug"]
[null,null,null,null,null,null,null,null,null,null,"Sep"]
[null,null,null,null,null,null,null,null,null,null,"Oct"]
[null,null,null,null,null,null,null,null,null,null,"Nov"]
[null,null,null,null,null,null,null,null,null,null,"Dec"]
[null,null,null,null,null,null,null,null,null,null,"Annual",{"$f":"AVERAGE(L70:L81)","v":{"$error":"#DIV/0!"}},{"$f":"MAX(M70:M81)","v":0},{"$f":"AVERAGE(N70:N81)","v":{"$error":"#DIV/0!"}},{"$f":"MAX(O70:O81)","v":0}]

{"sheet":"CO 95% 10 min","index":22,"n_rows":82,"n_cols":19,"rows_kept":82,"cut":false,"hidden":false,"merged":[[4,0,5,7],[6,18,10,20],[12,18,14,20],[15,18,18,20],[69,10,81,10],[7,1,7,4],[7,5,7,7],[7,10,7,16],[9,10,21,10],[24,10,36,10],[39,10,51,10],[50,0,50,7],[51,0,54,7],[54,10,66,10],[20,18,20,20],[21,18,22,20]]}
[{"$f":"+'Cover Page'!$B$29","v":"Annual Performance Report 2025"},null,null,null,{"$f":"+'Cover Page'!$B$33","v":"MVV Environment Baldovie Ltd"}]
[]
["Monitoring of Carbon Monoxide (10-minute avg)",null,null,null,"Whole Installation",null,null,"See  Notes in Cell S3",null,{"$f":"+A3","v":"Monitoring of Carbon Monoxide (10-minute avg)"},null,null,null,null,"Per Combustion Line",null,"Notes:",null,"Notes:"]
[]
["Please complete this tab for your plant if you have 10-minute average CO ELVs; otherwise, leave it blank and complete the CO 0.5 hourly tab"]
[]
[null,null,null,null,null,null,null,null,null,null,null,null,null,null,null,null,null,null,"User to add logic to complete Whole installation, Table A5:H18. From the data in Per Combustion Line, Table K6:Q79, subject to No. of lines installed"]
[{"$f":"+'Cover Page'!C39","v":2025},"10-minute Reference Periods",null,null,null,"Daily Reference Periods"]
["mg/Nm3","95%ile 10-min avg CO ELV","Highest daily 95%ile 10-min average","Monthly mean of 10-min averages","Highest 10-min average","Daily CO ELV","Monthly mean of  daily averages","Highest daily average",null,null,{"$f":"+A8","v":2025},"mg/Nm3","Highest daily 95%ile 10-min average","Monthly mean of 10-min averages","Highest 10-min average","Monthly mean of  daily averages","Highest daily average"]
["Jan",150,{"$f":"MAX(M10,M25,M40)","v":81.400000000000006},{"$f":"AVERAGE(N10,N25,N40)","v":11.300000000000002},{"$f":"MAX(O10,O25,O40)","v":4144.5},"50*",{"$f":"AVERAGE(P10,P25,P40)","v":11.4},{"$f":"MAX(Q10,Q25,Q40)","v":41.7},null,null,"A1","Jan",59.1,9.8000000000000007,401.3,10.4,21.4]
["Feb",{"$f":"+B10","v":150},{"$f":"MAX(M11,M26,M41)","v":109.3},{"$f":"AVERAGE(N11,N26,N41)","v":10.299999999999999},{"$f":"MAX(O11,O26,O41)","v":959.6},{"$f":"+F10","v":"50*"},{"$f":"AVERAGE(P11,P26,P41)","v":10.3},{"$f":"MAX(Q11,Q26,Q41)","v":31.8},null,null,null,"Feb",109.3,12.2,462.2,12.3,31.8]
["Mar",{"$f":"+B11","v":150},107.6,19.166666666666668,662.5,{"$f":"+F11","v":"50*"},20.033333333333331,45.3,null,null,null,"Mar",94.8,17.7,202.4,18.899999999999999,29.2,null,"Whole Installation table A5:H18:"]
["Apr",150,100.4,15.200000000000001,387.8,"50*",15.233333333333334,45.6,null,null,null,"Apr",77.5,13,262.7,13.4,25.4,null,"Mean: for 10-min and daily periods use average of all operational combustion lines."]
["May",150,109.3,13.833333333333334,568.6,"50*",14.066666666666668,38.299999999999997,null,null,null,"May",68.900000000000006,13.8,249.7,14.5,31.1]
["Jun",150,104.5,15.166666666666666,3006.4,"50*",14.300000000000002,41.1,null,null,null,"Jun",84.9,14.7,199.6,15.1,26.2]
["Jul",150,200.3,14.366666666666665,606.29999999999995,"50*",14.466666666666667,42.3,null,null,null,"Jul",89,20.399999999999999,190.5,20.7,34.6,null,"Maximum: for 10-min and daily periods use the highest of all operational combustion lines in any month."]
["Aug",150,115.8,16.566666666666666,776.5,"50*",16.633333333333336,45.3,null,null,null,"Aug",90.5,20.5,233.4,20.9,32.9]
["Sep",150,122.2,22.866666666666671,1003.4,"50*",23,55,null,null,null,"Sep",98.2,29.3,186.7,28,44.3]
["Oct",150,87,15.466666666666663,1297.7,"50*",16.299999999999997,41.7,null,null,null,"Oct",72.900000000000006,16.7,338.6,17.899999999999999,32.9]
["Nov",150,141.1,17.633333333333336,448.6,"50*",17.933333333333334,48.5,null,null,null,"Nov",68,14.2,194.5,15.4,48.5]
["Dec",150,117.2,15.966666666666667,1156.7,"50*",15.766666666666667,43.9,null,null,null,"Dec",95.1,12,222,12.1,25.2,null,"*Value of Daily ELV:"]
[null,null,null,null,null,null,null,null,null,null,null,"Annual",{"$f":"AVERAGE(M10:M21)","v":84.016666666666666},null,{"$f":"MAX(O10:O21)","v":462.2},{"$f":"AVERAGE(P10:P21)","v":16.633333333333333},{"$f":"MAX(Q10:Q21)","v":48.5},null,"ELV should be corrected as necessary to match ELV in Table 6.2"]
[]
[null,null,null,null,null,null,null,null,null,null,{"$f":"+A8","v":2025},"mg/Nm3","Highest daily 95%ile 10-min average","Monthly mean of 10-min averages","Highest 10-min average","Monthly mean of  daily averages","Highest daily average"]
[null,null,null,null,null,null,null,null,null,null,"A2","Jan",81.400000000000006,11.9,213.7,11.6,24.5]
[null,null,null,null,null,null,null,null,null,null,null,"Feb",27.9,7.5,181.1,7.4,11.1]
[null,null,null,null,null,null,null,null,null,null,null,"Mar",107.6,24.7,281.10000000000002,26,45.3]
[null,null,null,null,null,null,null,null,null,null,null,"Apr",100.4,19.600000000000001,318.2,19.2,45.6]
[null,null,null,null,null,null,null,null,null,null,null,"May",70.3,14.8,242,14.8,23.5]
[null,null,null,null,null,null,null,null,null,null,null,"Jun",104.5,13.9,1172.3,14,41.1]
[null,null,null,null,null,null,null,null,null,null,null,"Jul",95.9,14.7,263.5,15.7,42.3]
[null,null,null,null,null,null,null,null,null,null,null,"Aug",115.8,22.6,510.7,22.3,45.3]
[null,null,null,null,null,null,null,null,null,null,null,"Sep",122.2,30.4,331.4,32.1,55]
[null,null,null,null,null,null,null,null,null,null,null,"Oct",87,22.4,324.10000000000002,23.7,41.7]
[null,null,null,null,null,null,null,null,null,null,null,"Nov",141.1,32.5,448.6,32.299999999999997,47.6]
[null,null,null,null,null,null,null,null,null,null,null,"Dec",117.2,29.3,946.5,28.6,43.9]
[null,null,null,null,null,null,null,null,null,null,null,"Annual",{"$f":"AVERAGE(M25:M36)","v":97.608333333333334},null,{"$f":"MAX(O25:O36)","v":1172.3},{"$f":"AVERAGE(P25:P36)","v":20.641666666666662},{"$f":"MAX(Q25:Q36)","v":55}]
[]
[null,null,null,null,null,null,null,null,null,null,{"$f":"+A8","v":2025},"mg/Nm3","Highest daily 95%ile 10-min average","Monthly mean of 10-min averages","Highest 10-min average","Monthly mean of  daily averages","Highest daily average"]
[null,null,null,null,null,null,null,null,null,null,"A3","Jan",32.1,12.2,4144.5,12.2,41.7]
[null,null,null,null,null,null,null,null,null,null,null,"Feb",53.2,11.2,959.6,11.2,19.600000000000001]
[null,null,null,null,null,null,null,null,null,null,null,"Mar",83.7,15.1,662.5,15.2,28.2]
[null,null,null,null,null,null,null,null,null,null,null,"Apr",78.5,13,387.8,13.1,26.9]
[null,null,null,null,null,null,null,null,null,null,null,"May",109.3,12.9,568.6,12.9,38.299999999999997]
[null,null,null,null,null,null,null,null,null,null,null,"Jun",57.9,16.899999999999999,3006.4,13.8,21.4]
[null,null,null,null,null,null,null,null,null,null,null,"Jul",200.3,8,606.29999999999995,7,39.4]
[null,null,null,null,null,null,null,null,null,null,null,"Aug",38,6.6,776.5,6.7,12.6]
[null,null,null,null,null,null,null,null,null,null,null,"Sep",53.7,8.9,1003.4,8.9,25.2]
[null,null,null,null,null,null,null,null,null,null,null,"Oct",39.6,7.3,1297.7,7.3,18.7]
[null,null,null,null,null,null,null,null,null,null,null,"Nov",17.399999999999999,6.2,167.8,6.1,8.8000000000000007]
["Comments :",null,null,null,null,null,null,null,null,null,null,"Dec",13,6.6,1156.7,6.6,13.1]
["Environment Agency explanatory note: The 10-minute average ELV is based on the “95th percentile”. In this case this means that 95% of the 10 minute averages in the relevant 24-hour period (i.e. 137) must be below 150 mg/Nm3, and 5% (i.e. 7) are allowed to be any value above 150 mg/Nm3. Whilst we expect operators to minimise CO emissions at all times, it is perfectly acceptable for the value of the maximum 10-minute average to be above 150 mg/Nm3, provided the 95th percentile ELV has been met for that period. \n\n*Line 3 Daily Average ELV is 30mg/m3\n\nLine 1 had 1 daily average exceedance in 2025. There was insufficient effective operating time for the daily average ELV to be applicable.\n\nLine 3 had 8 daily average exceedances in 2025. For 3 of the 8 incidents, there was insufficient effective operating time for the daily average ELV to be applicable.",null,null,null,null,null,null,null,null,null,null,"Annual",{"$f":"AVERAGE(M40:M51)","v":64.725000000000009},null,{"$f":"MAX(O40:O51)","v":4144.5},{"$f":"AVERAGE(P40:P51)","v":10.083333333333332},{"$f":"MAX(Q40:Q51)","v":41.7}]
[]
[null,null,null,null,null,null,null,null,null,null,{"$f":"+A8","v":2025},"mg/Nm3","Highest daily 95%ile 10-min average","Monthly mean of 10-min averages","Highest 10-min average","Monthly mean of  daily averages","Highest daily average"]
[null,null,null,null,null,null,null,null,null,null,"A4","Jan"]
[null,null,null,null,null,null,null,null,null,null,null,"Feb"]
[null,null,null,null,null,null,null,null,null,null,null,"Mar"]
[null,null,null,null,null,null,null,null,null,null,null,"Apr"]
[null,null,null,null,null,null,null,null,null,null,null,"May"]
[null,null,null,null,null,null,null,null,null,null,null,"Jun"]
[null,null,null,null,null,null,null,null,null,null,null,"Jul"]
[null,null,null,null,null,null,null,null,null,null,null,"Aug"]
[null,null,null,null,null,null,null,null,null,null,null,"Sep"]
[null,null,null,null,null,null,null,null,null,null,null,"Oct"]
[null,null,null,null,null,null,null,null,null,null,null,"Nov"]
[null,null,null,null,null,null,null,null,null,null,null,"Dec"]
[null,null,null,null,null,null,null,null,null,null,null,"Annual",{"$f":"AVERAGE(M55:M66)","v":{"$error":"#DIV/0!"}},null,{"$f":"MAX(O55:O66)","v":0},{"$f":"AVERAGE(P55:P66)","v":{"$error":"#DIV/0!"}},{"$f":"MAX(Q55:Q66)","v":0}]
[]
[null,null,null,null,null,null,null,null,null,null,{"$f":"+A8","v":2025},"mg/Nm3","95%ile 10-min avg maximum","Monthly CO 10-min avg mean","10-min avg maximum","Monthly daily mean","Monthly daily maximum"]
[null,null,null,null,null,null,null,null,null,null,"A5","Jan"]
[null,null,null,null,null,null,null,null,null,null,null,"Feb"]
[null,null,null,null,null,null,null,null,null,null,null,"Mar"]
[null,null,null,null,null,null,null,null,null,null,null,"Apr"]
[null,null,null,null,null,null,null,null,null,null,null,"May"]
[null,null,null,null,null,null,null,null,null,null,null,"Jun"]
[null,null,null,null,null,null,null,null,null,null,null,"Jul"]
[null,null,null,null,null,null,null,null,null,null,null,"Aug"]
[null,null,null,null,null,null,null,null,null,null,null,"Sep"]
[null,null,null,null,null,null,null,null,null,null,null,"Oct"]
[null,null,null,null,null,null,null,null,null,null,null,"Nov"]
[null,null,null,null,null,null,null,null,null,null,null,"Dec"]
[null,null,null,null,null,null,null,null,null,null,null,"Annual",{"$f":"AVERAGE(M70:M81)","v":{"$error":"#DIV/0!"}},null,{"$f":"MAX(O70:O81)","v":0},{"$f":"AVERAGE(P70:P81)","v":{"$error":"#DIV/0!"}},{"$f":"MAX(Q70:Q81)","v":0}]

{"sheet":"NH3","index":23,"n_rows":79,"n_cols":17,"rows_kept":79,"cut":false,"hidden":false,"merged":[[3,16,7,18],[9,16,11,18],[12,16,15,18],[66,9,78,9],[4,1,4,3],[4,4,4,6],[4,9,4,14],[6,9,18,9],[21,9,33,9],[36,9,48,9],[47,0,47,6],[48,0,51,6],[51,9,63,9],[18,4,18,6],[17,16,17,18],[18,16,19,18]]}
[{"$f":"+'Cover Page'!$B$29","v":"Annual Performance Report 2025"},null,null,null,{"$f":"+'Cover Page'!$B$33","v":"MVV Environment Baldovie Ltd"}]
[]
["Monitoring of Ammnonia emissions ",null,null,"Whole Installation",null,null,"See  Notes in Cell Q3",null,null,{"$f":"+A3","v":"Monitoring of Ammnonia emissions "},null,null,null,"Per Combustion Line",null,null,"Notes:"]
[null,null,null,null,null,null,null,null,null,null,null,null,null,null,null,null,"User to add logic to complete Whole installation, Table A5:G18. From the data in Per Combustion Line, Table J6:O79, subject to No. of lines installed"]
[{"$f":"+'Cover Page'!C39","v":2025},"1/2 Hourly Reference Periods",null,null,"Daily Reference Periods"]
["mg/Nm3","1/2 hourly NH3 ELV","Monthly mean of half-hourly averages","Highest half- hourly average","Daily NH3 ELV","Monthly mean of  daily averages","Highest daily average",null,null,{"$f":"+A5","v":2025},"mg/Nm3","Monthly mean of half-hourly averages","Highest half- hourly average","Monthly mean of  daily averages","Highest daily average"]
["Jan","None",{"$f":"AVERAGE(L7,L22,M37)","v":0.9},{"$f":"MAX(M7,M22,M37)","v":24.6},10,{"$f":"AVERAGE(N7,N22,N37)","v":0.46666666666666662},{"$f":"MAX(O7,O22,O37)","v":7.9},null,null,"A1","Jan",0.3,24.6,0.7,7.9]
["Feb",{"$f":"+B7","v":"None"},{"$f":"AVERAGE(L8,L23,M38)","v":0.6333333333333333},{"$f":"MAX(M8,M23,M38)","v":6.4},10,{"$f":"AVERAGE(N8,N23,N38)","v":0.26666666666666666},{"$f":"MAX(O8,O23,O38)","v":1.7},null,null,null,"Feb",0.8,6.4,0.8,1.7]
["Mar",{"$f":"+B8","v":"None"},1.3333333333333333,{"$f":"MAX(M9,M24,M39)","v":19.2},10,0.33333333333333331,2.4,null,null,null,"Mar",0.4,19.2,0.5,1.9,null,"Whole Installation table A5:G18:"]
["Apr","None",0.79999999999999993,9.9,10,0.3666666666666667,3.1,null,null,null,"Apr",0.6,9.9,0.8,3.1,null,"Mean: for 1/2 hourly and daily periods calculate mean of values across all operational combustion lines for the month"]
["May","None",0.66666666666666663,14.1,10,0.56666666666666676,{"$f":"MAX(O11,O26,O41)","v":4.3},null,null,null,"May",1.2,14.1,1.1000000000000001,2.8]
["Jun","None",0.63333333333333341,14.8,10,0.43333333333333329,4.7,null,null,null,"Jun",0.4,7.5,0.5,2.8]
["Jul","None",1.3666666666666669,6.8,10,0.23333333333333331,2,null,null,null,"Jul",0.2,6.8,0.3,2,null,"Maximum: for 1/2 hourly and daily periods use the highest value across all operational combustion lines for the month"]
["Aug","None",0.63333333333333341,4.4000000000000004,10,0.10000000000000002,0.6,null,null,null,"Aug",0.2,4.4000000000000004,0.2,0.6]
["Sep","None",0.6333333333333333,4.0999999999999996,10,0.23333333333333331,1.5,null,null,null,"Sep",0.5,4.0999999999999996,0.5,1.5]
["Oct","None",1.2666666666666666,13.6,10,0.39999999999999997,2.7,null,null,null,"Oct",0.2,6.7,0.2,1.3]
["Nov","None",5.0666666666666664,16.7,10,1.2333333333333332,7.2,null,null,null,"Nov",0.2,7,0.3,2.2000000000000002]
["Dec","None",1.1000000000000001,21.5,10,0.53333333333333333,5,null,null,null,"Dec",0.4,21.5,0.4,3.4,null,"*Value of Daily ELV:"]
[null,null,null,null,null,null,null,null,null,null,"Annual",{"$f":"AVERAGE(L7:L18)","v":0.45},{"$f":"MAX(M7:M18)","v":24.6},{"$f":"AVERAGE(N7:N18)","v":0.52500000000000002},{"$f":"MAX(O7:O18)","v":7.9},null,"ELV should be corrected as necessary to match ELV in Table 6.2"]
[]
[null,null,null,null,null,null,null,null,null,{"$f":"+A5","v":2025},"mg/Nm3","Monthly mean of half-hourly averages","Highest half- hourly average","Monthly mean of  daily averages","Highest daily average"]
[null,null,null,null,null,null,null,null,null,"A2","Jan",0.7,9,0.7,1.8]
[null,null,null,null,null,null,null,null,null,null,"Feb",0.1,2.2999999999999998,0,0.5]
[null,null,null,null,null,null,null,null,null,null,"Mar",0.4,13.5,0.4,2.4]
[null,null,null,null,null,null,null,null,null,null,"Apr",0.3,9.9,0.3,1.8]
[null,null,null,null,null,null,null,null,null,null,"May",0.4,8.1999999999999993,0.6,4.3]
[null,null,null,null,null,null,null,null,null,null,"Jun",0.8,14.8,0.9,4.7]
[null,null,null,null,null,null,null,null,null,null,"Jul",0.2,3,0.2,1]
[null,null,null,null,null,null,null,null,null,null,"Aug",0.1,3.1,0.1,0.4]
[null,null,null,null,null,null,null,null,null,null,"Sep",0.2,4,0.2,0.8]
[null,null,null,null,null,null,null,null,null,null,"Oct",1.2,13.6,1,2.7]
[null,null,null,null,null,null,null,null,null,null,"Nov",3.4,16.7,3.3,7.2]
[null,null,null,null,null,null,null,null,null,null,"Dec",0.8,9.4,1.1000000000000001,5]
[null,null,null,null,null,null,null,null,null,null,"Annual",{"$f":"AVERAGE(L22:L33)","v":0.71666666666666679},{"$f":"MAX(M22:M33)","v":16.7},{"$f":"AVERAGE(N22:N33)","v":0.73333333333333339},{"$f":"MAX(O22:O33)","v":7.2}]
[]
[null,null,null,null,null,null,null,null,null,{"$f":"+A5","v":2025},"mg/Nm3","Monthly mean of half-hourly averages","Highest half- hourly average","Monthly mean of  daily averages","Highest daily average"]
[null,null,null,null,null,null,null,null,null,"A3","Jan",0.1,1.7,0,0.6]
[null,null,null,null,null,null,null,null,null,null,"Feb",0,1,0,0.1]
[null,null,null,null,null,null,null,null,null,null,"Mar",0.1,3.2,0.1,0.8]
[null,null,null,null,null,null,null,null,null,null,"Apr",0,1.5,0,0.3]
[null,null,null,null,null,null,null,null,null,null,"May",0,0.4,0,0.1]
[null,null,null,null,null,null,null,null,null,null,"Jun",0,0.7,-0.1,0.2]
[null,null,null,null,null,null,null,null,null,null,"Jul",0.2,3.7,0.2,2]
[null,null,null,null,null,null,null,null,null,null,"Aug",0,1.6,0,0.1]
[null,null,null,null,null,null,null,null,null,null,"Sep",0,1.2,0,0.1]
[null,null,null,null,null,null,null,null,null,null,"Oct",0,2.4,0,0.2]
[null,null,null,null,null,null,null,null,null,null,"Nov",0.2,11.6,0.1,1.2]
["Comments :",null,null,null,null,null,null,null,null,null,"Dec",0.1,2.1,0.1,0.6]
["An indicated ELV value of zero in the table above means that no ammonia limit is/was set in the permit.  ",null,null,null,null,null,null,null,null,null,"Annual",{"$f":"AVERAGE(L37:L48)","v":5.8333333333333341E-2},{"$f":"MAX(M37:M48)","v":11.6},{"$f":"AVERAGE(N37:N48)","v":3.3333333333333333E-2},{"$f":"MAX(O37:O48)","v":2}]
[]
[null,null,null,null,null,null,null,null,null,{"$f":"+A5","v":2025},"mg/Nm3","Monthly mean of half-hourly averages","Highest half- hourly average","Monthly mean of  daily averages","Highest daily average"]
[null,null,null,null,null,null,null,null,null,"A4","Jan"]
[null,null,null,null,null,null,null,null,null,null,"Feb"]
[null,null,null,null,null,null,null,null,null,null,"Mar"]
[null,null,null,null,null,null,null,null,null,null,"Apr"]
[null,null,null,null,null,null,null,null,null,null,"May"]
[null,null,null,null,null,null,null,null,null,null,"Jun"]
[null,null,null,null,null,null,null,null,null,null,"Jul"]
[null,null,null,null,null,null,null,null,null,null,"Aug"]
[null,null,null,null,null,null,null,null,null,null,"Sep"]
[null,null,null,null,null,null,null,null,null,null,"Oct"]
[null,null,null,null,null,null,null,null,null,null,"Nov"]
[null,null,null,null,null,null,null,null,null,null,"Dec"]
[null,null,null,null,null,null,null,null,null,null,"Annual",{"$f":"AVERAGE(L52:L63)","v":{"$error":"#DIV/0!"}},{"$f":"MAX(M52:M63)","v":0},{"$f":"AVERAGE(N52:N63)","v":{"$error":"#DIV/0!"}},{"$f":"MAX(O52:O63)","v":0}]
[]
[null,null,null,null,null,null,null,null,null,{"$f":"+A5","v":2025},"mg/Nm3","Monthly mean of half-hourly averages","Highest half- hourly average","Monthly mean of  daily averages","Highest daily average"]
[null,null,null,null,null,null,null,null,null,"A5","Jan"]
[null,null,null,null,null,null,null,null,null,null,"Feb"]
[null,null,null,null,null,null,null,null,null,null,"Mar"]
[null,null,null,null,null,null,null,null,null,null,"Apr"]
[null,null,null,null,null,null,null,null,null,null,"May"]
[null,null,null,null,null,null,null,null,null,null,"Jun"]
[null,null,null,null,null,null,null,null,null,null,"Jul"]
[null,null,null,null,null,null,null,null,null,null,"Aug"]
[null,null,null,null,null,null,null,null,null,null,"Sep"]
[null,null,null,null,null,null,null,null,null,null,"Oct"]
[null,null,null,null,null,null,null,null,null,null,"Nov"]
[null,null,null,null,null,null,null,null,null,null,"Dec"]
[null,null,null,null,null,null,null,null,null,null,"Annual",{"$f":"AVERAGE(L67:L78)","v":{"$error":"#DIV/0!"}},{"$f":"MAX(M67:M78)","v":0},{"$f":"AVERAGE(N67:N78)","v":{"$error":"#DIV/0!"}},{"$f":"MAX(O67:O78)","v":0}]

{"sheet":"Template changes log","index":24,"n_rows":23,"n_cols":3,"rows_kept":23,"cut":false,"hidden":false,"merged":[]}
["Log of changes to template (Environment Agency use only)"]
[]
["Date","Description of change","New version number and date"]
["2024-01-16","Air (periodic) tab: corrected default O2 reference from 6 to 11% ","Version 23.5a (for incinerators) - 16/01/2024"]
["2024-09-23","Air (periodic) tab: corrected symbol for Thallium to Tl"]
["2024-09-23","Air (periodic) tab: removed last year's references to different emission limit values applying from 03/12/23 and updated all relevant ELVs"]
["2024-09-23","Tabs for continuously monitored pollutants (HCl, SO2 etc.): changed terminology in table headings to improve clarity"]
["2024-09-23","Tabs for continuously monitored pollutants (HCl, SO2 etc.): removed last year's references to different emission limit values applying from 03/12/23 and updated all relevant ELVs"]
["2024-09-23","Perf 1 tab: updated formula for water usage to report m3 rather than litres and corrected error with formula copying operator name"]
["2024-09-23","Operational Summary tab: table added on start-ups and shut-downs"]
["2024-09-23","Operational Summary tab: table added on dioxins and mercury protocols"]
["2024-09-23","Operational Summary tab: table added on AST, QAL 2 and calibration functions"]
["2024-09-23","CO2 N2O tab: various changes made to notes to reflect the fact that most plants should now have calibrated CEMS and flow meters + some have C14 samplers and more up to date industry data","Version 24a (for incinerators) - 23/09/24"]
["2024-11-08","CO2 N2O tab: Changed the N2O CO2 equivalence factor from 298 to 265 in line with recently updated government greenhouse gas figures: https://www.gov.uk/government/publications/greenhouse-gas-reporting-conversion-factors-2024"]
["2024-11-08","CO2 N2O tab: Added an additional requirement for municipal EfW plants to state the yearly average biogenic percentage of the waste by mass, and reference to a document which sets out a methodology for calculating NCV of waste from the results of C14 sampling."]
["2024-11-08","Permit Compliance tab: Two additional columns added + explanatory notes to the table entitled \"Summary of non-compliances under the permit\" to allow CCS scores to be stated where relevant. "]
["2024-11-08","Residue Quality tab: Note added explaining application of TOC and LOI limits and asking operators to report both metrics where measured. ","Version 24.1a (for incinerators) - 08/11/24"]
["2024-11-27","Operational Summary tab: table added on start-ups and shut-downs","Version 24.2a (for incinerators) - 27/11/24"]
["2025-11-27","Cover Page: Print as PDF and Print Report and pdf buttons deleted and blank columns removed; contents page deleted","Version 25.1a (for incinerators) - 27/11/25"]
["2025-11-27","Residue Quality tab renamed to \"Residues\", and Summary of residue handling table moved from Operational Summary tab to Residues tab."]
["2025-11-27","Various changes made to the Operational Data tab including\n•\tReformatting of the rows under the Operational data heading (Rows 3-8) to make it clearer what information is required. \n•\tAmendment of the rows under the Energy Usage / Export heading (Rows 26-32) to calculate an “indicative parasitic load” (now excluding energy imported)\n•\tAmendment of the unit for gas usage from cubic feet to cubic metres (Row 50) \n•\tSome amendments to the first 2 notes and other minor edits\n•\tDeleted \"Overall Availability, mean avg. of all lines, hrs\" row"]
["2025-11-27","Operational Summary tab: Note added requiring all emergency shut-downs be listed, irrespective of whether or not they were reportable. "]
["2025-11-27","CO2 N2O tab: Note added to ask operators to ensure that relevant data reported here matches that which will be submitted under the Pollution Inventory"]